Cogmind - Beta 15 @@@ ROGUE MODE // 2025.07.08 @ 01:04:23 Player: 7604 Result: Self-destructed Performance ------------- Evolutions (8) 4000 Regions Visited (30) 6000 Robots Destroyed (427) 2135 Value Destroyed (22705) 22705 Prototype IDs (101) 2020 Alien Tech Used (4) 800 Bonus (11749) 11749 TOTAL SCORE: 49409 Bonus ------- High Alert Combat Kills 4182 Follower Combat Kills 3113 Entered Garrisons 200 Network Hubs Disabled 200 Met Data Miner 300 Acquired ECA 300 Met Warlord at Base 500 MAIN.C Attacked Warlord 500 Warlord Defense Kills 916 Met R17 at Cetus 500 Met R17 at Research 2000 Scanned by Researcher 500 Friendly Fire -1462 Cogmind --------- Core Integrity 205/1450 Matter 214/300 Energy 4/100 System Corruption 23% Temperature Cool (0) Movement Flying (19) Location -2/Protoforge Parts ------- > --- POWER (2) -------- (None) > --- PROPULSION (5) --- Experimental Surge Thruster Experimental Surge Thruster Experimental Surge Thruster Experimental Surge Thruster Experimental Surge Thruster > --- UTILITY (11) ----- Scrap Engine Experimental Heat Sink Advanced Signal Interpreter > --- WEAPON (5) ------- Nanosword > --- INVENTORY (5) ---- Structural Scanner Quantum Capacitor Subatomic Replicator Vortex Rail (40) Peak State ------------ > --- POWER ------------ Multi-Quantum Reactor > --- PROPULSION ------- Shield-Gravjet Exoskeleton > --- UTILITY ---------- Armored Scrap Engine Advanced Heat Sink Advanced Heat Sink Huge Storage Unit Advanced Signal Interpreter Experimental Core Analyzer Advanced Kinecellerator SHELL Armor > --- WEAPON ----------- Hvy. Laser Phase Construct/C Sigix Broadsword > --- INVENTORY -------- Advanced Heat Sink Advanced Sensor Array Quantum Capacitor Experimental Reaction Control System Centrium Medium Armor Plating Heavy Regenerative Plating Heavy Regenerative Plating Experimental Thermal Shield Advanced Force Field Dimensional Node Initializer Dimensional Node Initializer High-powered Transdimensional Reconstructor High-powered Transdimensional Reconstructor Subatomic Replicator Vortex Rifle Vortex Rifle Vortex Rail Vortex Rail Compact Mass Driver Ragnarok Missile Launcher Advanced Remote Datajack Nanosword [Rating: 211] Favorites ----------- Power Constructs Engine Ion Engine Power Core Light Nuclear Core Reactor Constructs Propulsion Constructs Treads Light Treads Leg Constructs Wheel Compact Wheel Hover Unit Hover Unit Flight Unit Experimental Surge Thruster Utility Armored Scrap Engine Device Armored Scrap Engine Storage High-capacity Storage Unit Processor Advanced Signal Interpreter Hackware Improved Hacking Suite Protection Centrium Medium Armor Plating Weapon Constructs Energy Gun Precision Beam Rifle Energy Cannon Heavy Plasma Cannon Ballistic Gun Subdweller Machine Gun Ballistic Cannon Constructs Launcher Ragnarok Missile Launcher Special Weapon Improved Remote Datajack Impact Weapon Great Maul Slashing Weapon Plasma Sword Special Melee Weapon Datajack Build | -11 -10 -10 -10 -8 -8 -8 -6 -6 -6 -6 -6 -6 -5 -5 -5 -5 -5 -5 -4 -4 -4 -4 -4 -4 -3 -3 -3 -2 -2 -2 ------- Run | Yrd Mat Min Sub Mat Sto Rec Fac Gar Fac Low Low Dat Pro Fac Ext Cet Arc Hub Fac Was Fac Upp Upp War Pro Res Tes Res Qua Frg Slots Evolved 16 | . . . . 4 . . 4 . . . . . . 2 . . . . 2 . . . . . . 2 . 2 . . Power 1 | . . . . . . . . . . . . . . 1 . . . . . . . . . . . . . . . . Propulsion 3 | . . . . 3 . . . . . . . . . . . . . . . . . . . . . . . . . . Utility 9 | . . . . 1 . . 2 . . . . . . 1 . . . . 1 . . . . . . 2 . 2 . . Weapon 3 | . . . . . . . 2 . . . . . . . . . . . 1 . . . . . . . . . . . Parts Attached 225 | 7 7 7 11 7 28 3 5 15 9 4 2 1 3 9 16 6 6 1 4 . 4 4 4 9 1 7 17 11 4 13 Power 10 | 1 1 1 1 1 2 . . . . . . . . 2 . . . . . . . . . . . . 1 . . . Engine 3 | 1 1 . 1 . . . . . . . . . . . . . . . . . . . . . . . . . . . Core 5 | . . 1 . 1 2 . . . . . . . . 1 . . . . . . . . . . . . . . . . Reactor 2 | . . . . . . . . . . . . . . 1 . . . . . . . . . . . . 1 . . . Propulsion 42 | 2 . 3 3 4 6 2 . 6 1 1 1 . 3 2 2 . . . . . . . . . . . . . . 6 Treads 17 | 2 . 1 . 3 4 2 . 4 . . . . . . 1 . . . . . . . . . . . . . . . Leg 8 | . . . . . . . . 2 . 1 1 . 2 . 1 . . . . . . . . . . . . . . 1 Wheel 6 | . . 2 3 1 . . . . . . . . . . . . . . . . . . . . . . . . . . Hover 4 | . . . . . 1 . . . 1 . . . 1 1 . . . . . . . . . . . . . . . . Flight 7 | . . . . . 1 . . . . . . . . 1 . . . . . . . . . . . . . . . 5 Utility 101 | 2 3 1 2 . 5 1 3 3 6 2 1 . . 3 10 2 6 1 4 . 1 2 4 6 . 4 12 8 3 6 Device 59 | 1 2 . 2 . 4 1 . . 5 1 . . . 2 5 1 5 . 2 . 1 1 3 4 . 1 6 5 3 4 Storage 7 | 1 1 . . . 1 . 1 . . . . . . . . . . . 1 . . 1 . . . . 1 . . . Processor 9 | . . . . . . . 1 . . . . . . 1 . . . . . . . . . 1 . 1 3 2 . . Hackware 1 | . . . . . . . . . . . . . . . . . 1 . . . . . . . . . . . . . Protection 25 | . . 1 . . . . 1 3 1 1 1 . . . 5 1 . 1 1 . . . 1 1 . 2 2 1 . 2 Artifact . | . . . . . . . . . . . . . . . . . . . . . . . . . . . . . . . Weapon 72 | 2 3 2 5 2 15 . 2 6 2 1 . 1 . 2 4 4 . . . . 3 2 . 3 1 3 4 3 1 1 Energy Gun 22 | 2 1 2 1 2 8 . . 1 . . . . . . . 1 . . . . . . . 2 . . 1 . . 1 Energy Cannon 8 | . . . . . . . 1 . 1 . . . . . 3 . . . . . 2 . . . . . 1 . . . Ballistic Gun 11 | . . . 2 . 3 . . 3 . . . . . . . 1 . . . . 1 . . . . . . 1 . . Ballistic Cannon 7 | . . . 2 . 2 . . . . . . . . . 1 . . . . . . . . . . . 1 1 . . Launcher 11 | . 2 . . . 2 . . 1 . 1 . . . . . . . . . . . . . 1 1 1 1 1 . . Special Weapon 3 | . . . . . . . . . . . . . . . . . . . . . . 2 . . . 1 . . . . Impact Weapon 1 | . . . . . . . . . . . . . . . . 1 . . . . . . . . . . . . . . Slashing Weapon 6 | . . . . . . . 1 . 1 . . . . 1 . 1 . . . . . . . . . 1 . . 1 . Piercing Weapon . | . . . . . . . . . . . . . . . . . . . . . . . . . . . . . . . Special Melee Weapon 3 | . . . . . . . . 1 . . . 1 . 1 . . . . . . . . . . . . . . . . Unidentified Prototypes 49 | . . . . . 11 1 . . 1 . . . . 2 2 3 . . . . . . . 6 . 1 9 6 3 4 Corrupted Parts 4 | . . . . . . . . . . . . . . . 3 1 . . . . . . . . . . . . . . System Corruption 22 | . . . . . . . . . . . . . . . 19 3 . . . . . . . . . . . . . . Parts Lost 64 | . 2 3 10 . 4 . 2 10 . . . . 1 . . . . . 1 . . 1 . . 1 1 3 2 6 17 Power 5 | . 1 . 1 . . . . . . . . . . . . . . . . . . . . . . . 1 . . 2 Propulsion 20 | . . 2 4 . 1 . 1 5 . . . . . . . . . . 1 . . . . . . . . . 1 5 Utility 25 | . . . 2 . 2 . 1 2 . . . . . . . . . . . . . 1 . . 1 . 2 2 4 8 Weapon 14 | . 1 1 3 . 1 . . 3 . . . . 1 . . . . . . . . . . . . 1 . . 1 2 Highest Loss Streak 7 | . 1 2 3 . 1 . 2 3 . . . . 1 . . . . . 1 . . 1 . . 1 1 1 1 2 7 To Critical Strikes 3 | . . . . . . . . . . . . . . . . . . . . . . . . . . . . . . 3 Average Backups 18 | 2 9 13 14 12 22 21 19 19 19 19 19 20 19 19 19 19 19 16 19 21 19 17 17 17 18 17 19 18 20 15 Power . | . . 1 1 . 1 1 3 2 1 1 1 1 1 . . . . . . . . . . . . . . . . . Propulsion 1 | . . . . . 4 4 1 . 2 . . . . . 1 . . . . 2 . . . . . . . . . . Utility 8 | . 3 6 5 3 4 4 7 7 11 12 12 13 13 11 11 12 13 11 12 14 13 12 12 12 11 9 10 9 8 6 Weapon 6 | 1 2 5 6 7 12 10 6 8 4 5 4 4 3 5 4 4 4 3 3 3 3 3 3 4 5 6 7 8 7 3 Tool/Special . | . . . . . . . . . . . . . . . . . . . . . . . . . . . . . . . Unused Backups 165 | . . . 2 . 5 41 6 19 8 3 2 . 1 4 10 2 2 1 5 2 8 1 2 5 . 8 10 6 4 8 Power 15 | . . . . . . 2 5 5 . 1 . . . . 1 . . . . . . . . . . . . 1 . . Propulsion 43 | . . . . . 1 24 . 1 1 . . . . . 2 1 . . 4 . 3 1 . . . 2 1 1 1 . Utility 29 | . . . . . 1 2 1 3 4 . 1 . . 3 2 1 . . . . 2 . . 2 . . 1 2 1 3 Weapon 74 | . . . 2 . 3 13 . 10 3 2 1 . 1 . 5 . 2 1 1 2 3 . 2 3 . 6 8 2 2 2 Tool/Special 4 | . . . . . . . . . . . . . . 1 . . . . . . . . . . . . . . . 3 Average Slot Usage (%) 64 | . 99 99 93 59 98 65 53 55 55 53 59 60 58 54 52 49 45 46 51 52 51 55 53 54 56 56 56 61 55 52 Engine 3 | . 14 1 9 8 . 6 3 2 6 6 6 6 6 3 . 1 . . . . . . . . . . . . . . Core 2 | . . 12 4 . 9 2 2 3 . . . . . 1 4 1 . . 2 5 5 5 5 2 . . . . . . Reactor 1 | . . . . . . . . . . . . . . 1 . 1 5 5 2 . . . . 2 5 4 4 4 4 3 Treads 8 | . 28 22 3 6 43 13 . 4 . . . . . . 1 1 . . . . 1 5 4 . . . . 1 2 . Leg 2 | . . . . . . . . 4 8 6 12 13 10 4 2 3 5 5 3 . 1 . . . . . . . . 4 Wheel 2 | . . 5 19 5 . 5 5 . . . . . . . . . . . . . . . . . . . . . . . Device 14 | . 13 13 12 10 17 11 12 6 13 19 18 20 18 14 11 6 9 14 15 21 20 18 18 20 20 21 21 18 17 13 Storage 7 | . 14 14 14 9 9 9 6 6 6 6 6 6 6 5 5 5 5 5 5 5 5 5 5 5 5 4 4 4 4 3 Processor 3 | . . . . . . . 5 6 5 . . . . 4 5 5 5 5 5 5 5 5 5 5 5 9 9 14 9 7 Protection 1 | . . . . . . . . 6 . . . . 1 2 4 9 5 2 4 . . 1 2 . . . 1 4 5 3 Energy Gun 5 | . 27 20 10 15 15 8 . . . . . . . . . . . . . . . . . . . . . . . . Energy Cannon 1 | . . . . . . . . 4 2 . . . 4 5 4 1 3 1 4 . . . 2 5 5 . . . . 2 Ballistic Gun 1 | . . . 8 1 1 7 . . . . . . . . . . . . . . . . . . . . . . . . Ballistic Cannon 2 | . . . 9 1 . 1 6 1 4 6 6 6 1 . 3 4 1 3 . 5 4 5 2 . . 3 4 4 3 1 Slashing Weapon 2 | . . . . . . . 6 1 3 5 5 1 1 4 2 1 . . 5 5 5 5 5 5 5 1 3 3 3 3 Peak Build Rating 211 | 7 8 11 16 22 33 44 63 86 90 93 93 93 93 105 122 126 125 118 124 127 134 134 137 137 136 154 175 199 211 194 Average Rating 84 | 5 7 9 12 15 29 37 53 64 81 87 92 89 88 90 101 122 122 113 121 125 124 128 125 128 130 143 162 186 195 164 On Entrance 91 | . 7 8 11 10 22 31 44 57 78 87 93 93 88 85 91 119 125 118 116 123 126 124 128 122 136 131 153 166 189 149 Naked Turns . | . . . . . . . . . . . . . . . . . . . . . . . . . . . . . . . Heaviest Build 189 | 14 30 32 34 33 96 96 102 69 72 74 81 74 83 97 93 94 91 84 128 121 154 85 85 109 109 123 179 189 189 175 Greatest Support 251 | 40 40 40 40 64 107 105 71 114 137 77 117 117 117 131 205 205 205 205 205 125 154 218 218 218 218 218 218 251 201 180 Greatest Overweight (x) 27 | . . 3 10 10 1 9 1 2 . 1 1 . . . . . 27 . 1 . 1 . . . . . . 1 1 1 Average Overweight (x) . | . . . 1 1 . 1 . . . . . . . . . . 1 . . . . . . . . . . . . . Largest Inventory Capacity 25 | 8 15 15 15 15 25 25 25 20 20 20 20 20 20 20 20 20 20 20 25 25 25 20 20 20 20 20 25 25 25 25 Average Capacity 21 | 7 14 15 15 15 24 25 21 20 20 20 20 20 20 20 20 20 20 20 23 25 21 20 20 20 20 20 24 25 25 23 Most Carried 25 | 3 12 15 15 13 25 25 24 20 20 20 20 20 20 20 20 20 20 18 25 25 25 20 20 20 20 20 25 25 25 25 Average Carried 19 | 2 9 13 14 12 23 22 19 19 19 19 19 20 19 19 19 19 19 16 19 23 21 19 19 18 19 19 24 24 24 18 Final Capacity 25 | 8 15 15 15 15 25 25 20 20 20 20 20 20 20 20 20 20 20 20 25 25 20 20 20 20 20 20 25 25 25 5 Final Carried 25 | 3 12 15 13 12 25 25 19 19 20 20 20 20 19 20 19 20 17 17 20 24 18 20 19 19 19 20 25 25 25 5 Scrap Engine Consumption 400 | . . . . . . 92 12 37 32 7 4 . 5 13 35 12 12 4 9 4 13 6 9 10 . 17 24 20 16 7 Constructs Created 3 | . . . . . . 3 . . . . . . . . . . . . . . . . . . . . . . . . Constructs Modified 184 | . . . . . . 39 5 17 11 4 2 . 3 8 16 7 6 2 5 1 6 5 3 4 . 9 12 9 8 2 Class Distribution -------------------- 56% | Construct 16% | Mutant 9% | Scavenger-Mutant 7% | Scavenger-Construct 5% | Commander-Construct 3% | Infiltrator-Construct Dominant Class ---------------- Mutant | -10/Materials Mutant | -10/Mines Mutant | -10/Subcaves Mutant | -8/Materials Scavenger-Mutant | -8/Storage Construct | -8/Recycling Commander-Construct | -6/Factory Construct | -6/Garrison Construct | -6/Factory Construct | -6/Lower Caves Construct | -6/Lower Caves Construct | -6/Data Miner Construct | -5/Proximity Caves Construct | -5/Factory Construct | -5/Extension Construct | -5/Cetus Construct | -5/Archives Construct | -5/Hub_04(d) Construct | -4/Factory Construct | -4/Waste Construct | -4/Factory Construct | -4/Upper Caves Construct | -4/Upper Caves Construct | -4/Warlord Construct | -3/Proximity Caves Scavenger-Construct | -3/Research Infiltrator-Construct | -3/Testing Scavenger-Construct | -2/Research Scavenger-Construct | -2/Quarantine Scavenger-Gunner | -2/Protoforge Resources | -11 -10 -10 -10 -8 -8 -8 -6 -6 -6 -6 -6 -6 -5 -5 -5 -5 -5 -5 -4 -4 -4 -4 -4 -4 -3 -3 -3 -2 -2 -2 ----------- Run | Yrd Mat Min Sub Mat Sto Rec Fac Gar Fac Low Low Dat Pro Fac Ext Cet Arc Hub Fac Was Fac Upp Upp War Pro Res Tes Res Qua Frg Matter Collected 13273 | 270 161 203 226 189 473 150 105 365 227 245 160 . 235 246 1587 351 364 208 244 389 227 412 299 126 245 351 975 1979 1565 696 Remotely . | . . . . . . . . . . . . . . . . . . . . . . . . . . . . . . . Salvage Created 21560 | 100 683 288 338 334 1055 1508 393 1284 1049 477 287 . 363 583 1650 292 594 387 244 . 326 111 271 212 271 392 1085 2707 3123 1153 Parts 1013 | 9 32 11 17 13 57 68 25 61 59 19 13 . 25 31 70 10 35 29 5 . 12 4 5 5 18 14 68 118 119 61 Haulers Intercepted 11 | . 2 . . 1 2 . . . . . . . . 1 . . . . . . 1 . . . . 2 1 1 . . Recyclers Shooed 8 | . . 1 . . 1 3 1 . 1 . . . . 1 . . . . . . . . . . . . . . . . Parts Field Recycled . | . . . . . . . . . . . . . . . . . . . . . . . . . . . . . . . Retrieved Matter . | . . . . . . . . . . . . . . . . . . . . . . . . . . . . . . . Parts Self-Destructed 103 | . . . 3 . . . . . . 16 9 . 32 . . . . . . . . 16 9 . 18 . . . . . Prevented 2 | . . . . . . . . . . . . . . . . . . . . . . . 2 . . . . . . . Kills | -11 -10 -10 -10 -8 -8 -8 -6 -6 -6 -6 -6 -6 -5 -5 -5 -5 -5 -5 -4 -4 -4 -4 -4 -4 -3 -3 -3 -2 -2 -2 ------- Run | Yrd Mat Min Sub Mat Sto Rec Fac Gar Fac Low Low Dat Pro Fac Ext Cet Arc Hub Fac Was Fac Upp Upp War Pro Res Tes Res Qua Frg Combat Hostiles Destroyed 322 | . 18 12 10 3 19 8 7 27 17 10 7 . 10 7 18 4 2 5 2 . 5 1 4 6 9 2 15 37 38 19 Melee 13 | . . . . . . . . 1 . . . . . . . . . . 2 . . . . . . . 5 . 2 3 Guns 47 | . 14 5 5 3 12 8 . . . . . . . . . . . . . . . . . . . . . . . . Cannons 189 | . . . 5 . 2 . 7 19 14 6 3 . 7 7 17 4 2 5 . . 5 1 3 . 1 2 9 29 33 8 AOE 63 | . 4 7 . . 2 . . 6 3 4 3 . 3 . . . . . . . . . . 4 8 . 1 7 3 8 Classes Destroyed 29 | 2 5 1 1 2 2 2 1 4 2 . . . 1 . . . . . . . . 1 . 1 . . 1 2 1 . Worker 11 | 1 1 1 . . 1 . . . . . . . . 1 1 . . . 1 . 1 . . . . . 2 . . 1 Builder 23 | . 1 . . . . 8 1 . 4 . . . . . 3 . . 2 . . . . . . . . . 1 1 2 Tunneler 6 | 4 . . . . . 1 . . 1 . . . . . . . . . . . . . . . . . . . . . Hauler 11 | . 2 . . 1 2 . . . . . . . . 1 . . . . . . 1 . . . . 2 1 1 . . Recycler 19 | . . . . 1 1 13 . . 1 . . . . . 2 . . . 1 . . . . . . . . . . . Operator 14 | . . . . . 1 . . . . . . . . . 1 . 9 1 . . . . . . . . 2 . . . Drone 2 | . . . . . . . . . . . . . 1 . . . . . . . . . . . . . . . . 1 Watcher 17 | . 3 . . 1 1 . 1 . 2 . . . . 1 1 2 . 1 . . . . . . . . . 2 1 1 Swarmer 57 | . 8 . . . . 1 3 3 5 4 3 . 5 . 2 . . . . . 3 . . . 8 . 3 5 . 4 Cutter 4 | . . . . . . . . 4 . . . . . . . . . . . . . . . . . . . . . . Saboteur 3 | . . . . . . . . 2 . . . . . . . . . . . . . . . . . . . . 1 . Grunt 78 | . 10 7 . 1 14 . . 5 1 4 2 . 1 . 5 . . 2 . . . 1 1 . . . . 8 16 . Brawler 8 | . . . . . . . 3 . 1 1 . . . . . . . . . . . . . 1 . . . . 2 . Duelist 9 | . . . . . 1 . . . 1 1 1 . . . . . . . . . . . 2 1 . . . . 2 . Protector 3 | . . . . . . . . . 2 . . . . . . . . . . . . . . 1 . . . . . . Researcher 3 | . . . . . . . . . . . . . . . . . . . . . . . . . . . 1 . 2 . Sentry 36 | . . . . 2 4 2 . 8 . . . . 1 2 6 . 2 2 . . 1 . 1 . 1 2 . 1 . 1 Demolisher 4 | . . . . . . 1 . . . . . . . . 1 . . . . . . . . . . . . 2 . . Specialist 5 | . . . . . . . . . 1 . . . . . . . . . . . . . . . . . 3 . 1 . Hunter 25 | . . . . . . . . 3 4 . . . . . 2 . . 1 . . . . . . . . 2 2 11 . Programmer 32 | . . . . . . 1 1 . 2 . . . 1 5 1 . . . 2 . 1 . . 2 . . 7 5 4 . Behemoth 5 | . . . . . . . . 2 . . 1 . 1 . 1 . . . . . . . . . . . . . . . Cetus Guard 4 | . . . . . . . . . . . . . . . . 4 . . . . . . . . . . . . . . Hotshot 13 | . . . . . . . . . . . . . . . . . . . . . . . . . . . . . . 13 Striker 6 | . . . . . . . . . . . . . . . . . . . . . . . . . . . . 6 . . Executioner 8 | . . . . . . . . . . . . . . . . . . . . . . . . 1 . . . 7 . . Alpha 7 1 | . . . . . . . . . . . . . . . . . . . . . . . . . . . . . 1 . Subdweller 13 | . . . 10 . . 3 . . . . . . . . . . . . . . . . . . . . . . . . Assembled 5 | . . 5 . . . . . . . . . . . . . . . . . . . . . . . . . . . . Surgeon 1 | . . . . . . . . . . . . . . . . . . . . . . 1 . . . . . . . . Thug 1 | . . . . . . . . . . . . . . . . . 1 . . . . . . . . . . . . . Savage 2 | . . . . . . . . . . . . . . . 2 . . . . . . . . . . . . . . . Guerrilla 1 | . . . . . . . . . . . . . . . . . 1 . . . . . . . . . . . . . Troll 2 | . . . . . . . . . . . . . . . . . . . . . . . . . . . . 2 . . Best Kill Streak 12 | 1 4 3 2 1 6 4 4 5 7 4 3 . 4 3 4 4 3 3 1 . 3 1 4 6 4 1 4 12 11 8 Combat Bots Only 12 | . 4 3 2 1 4 1 3 5 7 4 3 . 4 2 3 3 1 2 1 . 3 1 4 6 4 1 4 12 9 8 Max Kills in Single Turn 4 | 1 3 2 1 1 2 1 2 3 2 3 2 . 2 1 1 1 1 3 1 . 2 1 1 2 4 1 1 3 2 3 Gunslinging . | . . . . . . . . . . . . . . . . . . . . . . . . . . . . . . . Exploded 4 | . 2 2 . . 2 . . 3 2 3 2 . 2 . . . . . . . . . . 2 4 . 1 3 1 3 Melee 1 | . . . . . . . . 1 . . . . . . . . . . 1 . . . . . . . 1 . 1 1 Uniques/NPCs Destroyed . | . . . . . . . . . . . . . . . . . . . . . . . . . . . . . . . Combat | -11 -10 -10 -10 -8 -8 -8 -6 -6 -6 -6 -6 -6 -5 -5 -5 -5 -5 -5 -4 -4 -4 -4 -4 -4 -3 -3 -3 -2 -2 -2 -------- Run | Yrd Mat Min Sub Mat Sto Rec Fac Gar Fac Low Low Dat Pro Fac Ext Cet Arc Hub Fac Was Fac Upp Upp War Pro Res Tes Res Qua Frg Hostile Shots Fired 2413 | . 81 25 46 18 68 34 38 303 117 19 31 . 36 25 195 43 13 45 55 . 15 19 10 45 22 30 325 87 320 348 Missed 799 | . 23 5 13 7 20 16 12 110 36 6 11 . 10 7 63 13 5 10 13 . 5 5 1 16 6 11 149 25 105 96 Deflected 1 | . . . . . . . . . . . . . . . . . . . . . . . . . . . . . . 1 Hits 1614 | . 58 20 33 11 48 18 26 193 81 13 20 . 26 18 132 30 8 35 42 . 10 14 9 29 16 19 176 62 215 252 Melee 8 | . . . . . 1 . 1 3 . . . . . . . . . . . . . . . 2 . . . 1 . . Projectile 1606 | . 58 20 33 11 47 18 25 190 81 13 20 . 26 18 132 30 8 35 42 . 10 14 9 27 16 19 176 61 215 252 AOE 8 | . . . 1 . . . . 4 . . . . . . 2 . . . . . . . . . . . . 1 . . Critical Strikes 92 | . . . 1 . 2 . 3 2 1 1 . . 3 . 6 4 . 1 7 . . . 4 1 1 1 3 3 16 32 Part Disruptions 3 | . . . . . . . . . . . . . . . . . . . . . . . 1 . . . . . 2 . Damage Taken 34167 | . 619 325 748 165 838 291 491 2675 1404 227 405 . 498 326 2886 721 250 1113 798 . 158 384 125 738 473 458 2236 1670 6332 6813 Core 2912 | . 106 78 56 78 68 46 18 387 117 34 40 . 53 62 139 28 . . 63 . 31 . . 129 55 23 205 221 473 402 Absorbed by Shields 1044 | . . . . . . . . . . . . . . 38 67 73 . . 41 . . . . . . . 566 259 . . Redirected to Shielding 355 | . . . . . . . . 116 . . . . . . . . . . . . . . . . . . . . . 239 Ignored by Resistances 108 | . . . . . . . 34 66 . . . . . . . . . . . . . . 8 . . . . . . . Regen/Repaired (Parts) 15537 | . . . . . 313 . 59 834 677 570 212 . 276 174 1558 773 434 65 712 58 612 41 308 34 . 997 1167 1157 2957 1549 Core Remaining (%) 60 | 100 . . 4 . . 65 . . . . . . 23 . . . . 77 . . . . . . 75 . 82 . . . Volleys Fired 1144 | 25 66 21 33 18 65 90 23 97 64 20 19 . 24 23 107 24 24 37 8 8 12 22 12 25 14 22 57 81 76 27 Largest 2 | 2 2 2 2 2 2 2 2 2 1 1 1 . 1 1 2 1 1 1 1 1 1 1 1 1 1 1 1 1 1 2 Hottest 339 | 90 90 80 105 110 122 122 127 118 128 126 126 . 99 99 181 91 66 167 167 167 167 169 169 280 280 280 274 274 274 339 Shots Fired 1380 | 45 129 37 66 36 120 116 27 99 64 20 18 . 23 23 108 22 24 36 8 8 11 22 12 25 15 22 57 81 75 31 Gun 526 | 45 126 29 35 36 110 116 . 14 . . . . . . . . . . . . . . . . . . 8 . 1 6 Cannon 778 | . . . 31 . 8 . 27 82 62 18 14 . 21 23 108 22 24 36 8 8 11 20 12 8 9 21 46 73 67 19 Launcher 60 | . 3 8 . . 2 . . 3 2 2 4 . 2 . . . . . . . . . . 12 6 . 3 3 4 6 Special 16 | . . . . . . . . . . . . . . . . . . . . . . 2 . 5 . 1 . 5 3 . Kinetic 566 | . . . 50 . 19 33 22 38 50 18 . . 2 . 9 22 17 36 8 8 8 20 4 . . 16 46 73 67 . Thermal 726 | 45 126 29 16 36 101 83 5 61 14 . 14 . 19 23 99 . 7 . . . . . . 20 9 5 . . . 14 Explosive 41 | . 3 8 . . . . . . . 2 4 . 2 . . . . . . . . . . . 6 . 3 3 4 6 Electromagnetic 11 | . . . . . . . . . . . . . . . . . . . . . 3 . 8 . . . . . . . Entropic 20 | . . . . . . . . . . . . . . . . . . . . . . . . . . . 8 . 1 11 Robot Hit Streak 72 | 5 10 6 21 13 41 13 10 17 12 9 5 . 7 8 15 12 7 7 3 1 4 7 3 12 2 3 8 48 72 11 Robot Miss Streak 9 | 5 4 2 1 2 2 2 3 3 4 4 2 . 3 2 5 1 1 8 9 3 2 2 4 2 2 2 4 . 1 2 Penetration Max 1 | . . . . . . . . . 1 . . . . . . 1 . . . . 1 . . . . . . . . 1 Secondary Targets 2 | . 1 . 1 . . . . . . . . . . . . . . . . . . . . . . . . . . . Max Gunslinging Chain 1 | . 1 . 1 . . . . . . . . . . . . . . . . . . . . . . . . . . . Shots Hit Robots 933 | 23 83 21 52 27 88 76 21 85 45 18 15 1 15 18 69 19 18 10 18 3 8 16 4 18 2 15 43 30 43 29 Core Hits 582 | 6 41 19 15 9 48 37 15 52 29 18 10 . 10 7 30 10 12 10 4 . 5 1 3 12 14 5 22 62 47 29 Critical Kills 13 | . . . . . . 1 . . . . . . 1 1 4 . 3 1 . . 1 . . . . . . 1 . . Critical Parts Destroyed 15 | . . . . 1 . . . . . . . . 1 4 2 1 2 1 . . . . . . . . . 1 2 . Critical Strikes 85 | . 6 . 5 1 9 8 1 4 . . 2 . 3 5 16 5 6 2 1 1 1 1 . . . 1 . 4 2 1 Burn 25 | . 6 . 1 . 9 7 . . . . 2 . . . . . . . . . . . . . . . . . . . Destroy 36 | . . . 2 1 . 1 . . . . . . 3 5 7 2 6 2 . 1 1 1 . . . . . 2 2 . Blast 17 | . . . 2 . . . 1 2 . . . . . . 9 3 . . . . . . . . . . . . . . Sever 7 | . . . . . . . . 2 . . . . . . . . . . 1 . . . . . . 1 . 2 . 1 Melee Attacks 216 | . . . . . . . 1 12 13 2 . 1 1 9 . . . . 27 1 3 3 . 2 4 14 55 9 37 22 Impact . | . . . . . . . . . . . . . . . . . . . . . . . . . . . . . . . Slashing 210 | . . . . . . . 1 10 13 2 . . . 7 . . . . 27 1 3 3 . 2 4 14 55 9 37 22 Piercing . | . . . . . . . . . . . . . . . . . . . . . . . . . . . . . . . Sneak Attacks 18 | . . . . . . . . 2 2 . . 1 1 2 . . . . 2 . . . . . . 1 3 1 . 3 Combat Hostiles . | . . . . . . . . . . . . . . . . . . . . . . . . . . . . . . . Follow-up Attacks . | . . . . . . . . . . . . . . . . . . . . . . . . . . . . . . . Damage Inflicted 71639 | 261 1336 579 1048 510 1999 1376 1104 4496 3220 1353 1226 . 1416 1335 5676 1914 2239 1381 997 433 1075 1662 573 1794 725 1306 3961 10278 10684 5682 Guns 5779 | 261 1034 206 537 510 1494 1367 . 53 . . . . . . . . . . . . . . . . . . 214 . . 103 Cannons 50928 | . . . 511 . 137 . 1104 3443 2721 966 942 . 1180 1322 5676 1914 2239 1083 289 433 932 1482 573 266 266 873 2298 8788 8765 2725 Explosions 9505 | . 286 372 . . 353 . . 562 317 285 284 . 236 . . . . 298 . . 86 . . 1495 459 . 156 1268 995 2053 Melee 5301 | . . . . . . . . 438 180 102 . . . . . . . . 708 . 57 180 . 33 . 433 1293 222 924 731 Ramming 126 | . 16 1 . . 15 9 . . 2 . . . . 13 . . . . . . . . . . . . . . . 70 Kinetic 36575 | . . . 813 . 524 193 1001 1443 2661 966 . . 102 . 700 1914 1543 1083 289 433 704 1482 . . . 873 2298 8788 8765 . Thermal 19453 | 261 1034 206 235 510 1460 1174 103 2615 377 . 942 . 1078 1322 4976 . 696 . . . 86 . . 1761 266 . . . . 351 Explosive 6394 | . 286 372 . . . . . . . 285 284 . 236 . . . . . . . . . . . 459 . 156 1268 995 2053 Electromagnetic 1099 | . . . . . . . . . . . . . . . . . . 298 . . 228 . 573 . . . . . . . Impact . | . . . . . . . . . . . . . . . . . . . . . . . . . . . . . . . Slashing 5301 | . . . . . . . . 438 180 102 . . . . . . . . 708 . 57 180 . 33 . 433 1293 222 924 731 Piercing . | . . . . . . . . . . . . . . . . . . . . . . . . . . . . . . . Entropic 2691 | . . . . . . . . . . . . . . . . . . . . . . . . . . . 214 . . 2477 Highest Corruption 25 | . . . . . . . 1 1 4 4 4 4 5 3 22 25 25 11 5 18 18 18 18 18 3 . 6 . 16 23 Average Corruption 8 | . . . . . . . 1 1 1 4 4 4 4 2 5 24 13 4 4 13 18 18 18 6 3 . 4 . 5 16 Corruption Purged 26 | . . . . . . . . . 1 . . . . . . . 25 . . . . . . . . . . . . . Corruption Blocked . | . . . . . . . . . . . . . . . . . . . . . . . . . . . . . . . Effects 413 | . . . . . . . 1 6 11 31 25 1 22 7 28 23 31 1 12 9 21 59 37 2 12 . 18 . 25 31 Message Errors 94 | . . . . . . . . . 4 6 7 . 8 2 5 2 9 . 2 4 6 11 8 . 1 . 6 . 6 7 Matter Fused 109 | . . . . . . . . 4 3 10 4 . 5 3 8 8 8 . 3 1 4 23 8 . . . 5 . 4 8 Heat Flow Errors 42 | . . . . . . . . 1 3 2 4 1 1 . 3 1 1 . 4 2 2 7 4 1 2 . 1 . 1 1 Energy Discharges 47 | . . . . . . . . . . 4 3 . 3 . 2 1 4 . 1 1 3 8 6 1 2 . . . 4 4 Parts Rejected 8 | . . . . . . . 1 . . 1 . . 1 1 . 1 . . . . . . . . . . 2 . . 1 Parts Fused 7 | . . . . . . . . . . . . . . . . 1 . . . . . 1 2 . 2 . . . 1 . Data Loss (minor) 61 | . . . . . . . . . . 4 4 . 3 1 7 4 8 . 2 . 4 7 5 . 2 . 2 . 6 2 Data Loss (major) 14 | . . . . . . . . 1 . 2 . . . . . . 1 . . 1 1 . 2 . 1 . 2 . 1 2 Misfires 2 | . . . . . . . . . . . . . . . 1 . . . . . . . . . 1 . . . . . Alerts 16 | . . . . . . . . . 1 2 2 . . . 1 3 . . . . . 2 2 . 1 . . . 1 1 Misdirections 3 | . . . . . . . . . . . . . . . . . . . . . . . . . . . . . . 3 Weapon Failures 10 | . . . . . . . . . . . 1 . 1 . 1 2 . 1 . . 1 . . . . . . . 1 2 Overload Shots . | . . . . . . . . . . . . . . . . . . . . . . . . . . . . . . . Overflow Damage 6054 | . 28 10 . . . . 59 65 252 2 22 . 134 337 615 9 312 81 185 . 308 356 50 17 18 11 860 821 1069 433 Projectiles 5033 | . . . . . . . 59 11 158 2 22 . 134 337 615 9 312 57 82 . 308 356 50 . . 9 759 616 943 194 Explosions 330 | . 28 10 . . . . . 19 23 . . . . . . . . 24 . . . . . 17 18 . . 100 . 91 Melee 691 | . . . . . . . . 35 71 . . . . . . . . . 103 . . . . . . 2 101 105 126 148 Knockbacks 151 | . . . 7 . 4 . 7 3 21 8 . . 1 . 3 . 2 5 1 . 3 3 . . . . 9 49 25 . Impact . | . . . . . . . . . . . . . . . . . . . . . . . . . . . . . . . Kinetic 138 | . . . 6 . 4 . 6 3 21 7 . . 1 . 3 . 2 5 1 . 2 3 . . . . 7 45 22 . Secondary 13 | . . . 1 . . . 1 . . 1 . . . . . . . . . . 1 . . . . . 2 4 3 . Self-Inflicted Damage 893 | . . 55 . . 47 . . 92 . . . . 25 . . . . 102 . . . . . . 35 . 66 198 57 216 Shots 17 | . . 3 . . 1 . . 2 . . . . 1 . . . . 1 . . . . . . 1 . 3 2 1 2 Rammed 8 | . 3 1 . . 1 1 . . . . . . . 1 . . . . . . . . . . . . . . . 1 Targets Rammed 9 | . 3 1 . . 1 1 . . 1 . . . . 1 . . . . . . . . . . . . . . . 1 Kicked 1 | . . . . . . . . . 1 . . . . . . . . . . . . . . . . . . . . . Crushed . | . . . . . . . . . . . . . . . . . . . . . . . . . . . . . . . Highest Temperature 727 | 90 288 177 6 54 206 48 132 268 296 216 179 221 135 160 385 264 175 448 232 246 196 315 430 430 419 404 450 384 599 727 Average Temperature 93 | 36 67 62 6 15 45 13 54 44 72 80 63 136 29 60 80 127 43 122 107 108 74 120 148 167 133 135 135 114 134 184 Received Heat Transfer 6477 | . 276 156 120 45 360 66 144 420 9 108 75 . 90 9 510 13 36 27 45 . 9 27 317 21 36 102 . 87 915 2454 Effects 33 | . . . . . . . . . 4 . . . . . 2 . . 4 . . . 3 . 1 . 1 4 3 6 5 Shutdowns 7 | . . . . . . . . . . . . . . . . . . 1 . . . . . . . 1 1 . 4 . Energy Bleed 7 | . . . . . . . . . . . . . . . 2 . . 2 . . . . . 1 . . . 2 . . Interference 13 | . . . . . . . . . 4 . . . . . . . . . . . . 3 . . . . 2 1 . 3 Matter Decay 1 | . . . . . . . . . . . . . . . . . . . . . . . . . . . 1 . . . Short Circuit 2 | . . . . . . . . . . . . . . . . . . . . . . . . . . . . . 1 1 Damage (minor) 2 | . . . . . . . . . . . . . . . . . . 1 . . . . . . . . . . . 1 Damage (core) 1 | . . . . . . . . . . . . . . . . . . . . . . . . . . . . . 1 . Siege Activations . | . . . . . . . . . . . . . . . . . . . . . . . . . . . . . . . Martial Activations . | . . . . . . . . . . . . . . . . . . . . . . . . . . . . . . . Shielding Activations 1 | . . . . . . . . . . . . . . . . . . . . . . . . . . . . . . 1 Total Turns 16 | . . . . . . . . . . . . . . . . . . . . . . . . . . . . . . 16 Longest Duration 16 | . . . . . . . . . . . . . . . . . . . . . . . . . . . . . . 16 Robots Disrupted . | . . . . . . . . . . . . . . . . . . . . . . . . . . . . . . . Combat Hostiles . | . . . . . . . . . . . . . . . . . . . . . . . . . . . . . . . Robots Corrupted 3 | . . . . . . . . . . . . . . . . . . . . . . . 1 . . . . 1 . 1 Combat Hostiles 2 | . . . . . . . . . . . . . . . . . . . . . . . 1 . . . . 1 . . Parts Fried 16 | . . . . . . . . . . . . . . . . . . 3 . . 3 . 8 . . . . 1 . 1 Impact Corruptions 7 | . . . . . . . . . . . . . . . . . . . . . . . . . . . 1 2 2 2 Robots Melted 8 | . . . . . 3 . . 1 . . 1 . . . 1 . . . . . . . . 2 . . . . . . Combat Hostiles 8 | . . . . . 3 . . 1 . . 1 . . . 1 . . . . . . . . 2 . . . . . . Parts Melted 57 | 1 5 2 . 2 11 9 1 13 1 . 5 . . 1 3 . 1 . 1 . . . . 1 . . . . . . Heat Transferred 24683 | 647 3196 475 472 819 3666 3034 111 3331 383 . 1300 . 650 800 3310 . 222 . . . 50 . . 1921 74 . . . . 222 Parts Sabotaged 1 | . . . . . . . . 1 . . . . . . . . . . . . . . . . . . . . . . Parts Stolen . | . . . . . . . . . . . . . . . . . . . . . . . . . . . . . . . Parts Stripped . | . . . . . . . . . . . . . . . . . . . . . . . . . . . . . . . Power Chain Reactions . | . . . . . . . . . . . . . . . . . . . . . . . . . . . . . . . Alert | -11 -10 -10 -10 -8 -8 -8 -6 -6 -6 -6 -6 -6 -5 -5 -5 -5 -5 -5 -4 -4 -4 -4 -4 -4 -3 -3 -3 -2 -2 -2 ------- Run | Yrd Mat Min Sub Mat Sto Rec Fac Gar Fac Low Low Dat Pro Fac Ext Cet Arc Hub Fac Was Fac Upp Upp War Pro Res Tes Res Qua Frg Maximum Alert Level 4 | . 1 . . . 1 . 1 4 3 . . . . 2 3 2 1 2 1 . 2 . . . . . 2 3 4 4 Low Security (%) 64 | 100 97 100 . 100 98 100 . . . . . . . . . . 90 93 90 100 58 . . . . 100 40 52 . . Level 1 10 | . 2 . . . 1 . 100 19 . . . . . 20 58 24 9 . 9 . 2 . . . . . 39 22 . . Level 2 10 | . . . . . . . . 25 26 . . . . 79 39 75 . 6 . . 39 . . . . . 19 10 8 8 Level 3 10 | . . . . . . . . 23 73 . . . . . . . . . . . . . . . . . . 14 45 68 Level 4 4 | . . . . . . . . 31 . . . . . . . . . . . . . . . . . . . . 45 23 Level 5 . | . . . . . . . . . . . . . . . . . . . . . . . . . . . . . . . High Security . | . . . . . . . . . . . . . . . . . . . . . . . . . . . . . . . Max Security . | . . . . . . . . . . . . . . . . . . . . . . . . . . . . . . . Peak Influence 1403 | 5 209 103 . 51 205 79 382 1346 1021 . . . . 524 702 473 240 482 231 62 581 . . . . 174 448 841 1403 1215 Initial 751 | . . 36 . . 13 3 382 221 706 . . . . 522 210 386 147 . 231 25 15 . . . . 67 48 240 459 751 Average 254 | 1 90 22 . 10 97 25 324 778 753 . . . . 433 377 424 64 53 105 24 246 . . . . 58 214 310 1040 939 Influence Increases 15333 | 25 663 312 . 100 678 402 631 1245 937 235 170 . 371 696 1292 241 161 700 225 98 719 416 146 105 215 307 859 1142 1435 807 Destroy 0b10 Robot/C 7280 | . 360 180 . 60 380 100 200 660 440 200 140 . 260 140 680 160 80 100 40 . 180 240 140 100 180 40 320 740 800 360 Destroy 0b10 Robot/NC 590 | 25 35 5 . 15 30 115 10 5 55 5 . . 10 15 70 10 45 20 10 . 15 . . 5 . 10 25 20 10 25 Destroy Leader 1164 | . 80 40 . 24 116 . 22 40 104 30 30 . 40 54 74 . . 32 20 . 32 20 . . 20 24 52 166 92 52 Allied During Kill 1010 | . . 3 . . . . 28 95 77 . . . 61 . 276 61 16 4 . . 227 156 6 . . . . . . . Successful Hack 356 | . 48 . . . 38 18 . 28 6 . . . . . 83 . . 11 22 . 22 . . . . 18 50 . 5 7 Select Force Hacks 210 | . 60 . . . . 150 . . . . . . . . . . . . . . . . . . . . . . . . Disable Machine 1110 | . . 15 . . 45 15 15 15 120 . . . . 15 15 . . 240 . . 135 . . . . . 150 45 150 135 Anti-Garrison Action 400 | . . . . . . . . 250 . . . . . . . . . . . . . . . . . 150 . . . . Destroy Structure 1813 | . 20 54 . 1 39 4 6 137 90 . . . . 22 64 10 20 278 28 98 108 . . . . 50 202 141 258 183 Advance Influence 800 | . . . . . . . 350 . . . . . . 450 . . . . . . . . . . . . . . . . Partial Spotted 45 | . . . . . 15 . . . . . . . . . . . . . . . . . . . . 15 15 . . . Lose Combat Pursuer 555 | . 60 15 . . 15 . . 15 45 . . . . . 30 . . 15 105 . . . . . 15 . 45 30 120 45 Influence Decreases 14239 | 25 568 382 25 69 701 331 393 216 1265 872 484 67 255 382 1032 562 530 226 627 148 216 835 244 38 190 321 518 753 915 1049 Entered New Map 3983 | . . 59 13 . 18 5 47 96 640 378 74 67 . 44 220 304 222 . 243 47 7 195 21 8 75 33 38 187 357 585 Time Decay 8804 | 25 548 273 12 69 509 326 246 . 565 494 410 . 225 318 502 198 308 206 374 85 189 510 203 30 115 276 450 546 498 294 Lost Part 518 | . 20 30 . . 36 . 20 100 . . . . 10 . . . . . 10 . . 10 . . . 2 30 20 60 170 Lost Ally 646 | . . 20 . . . . 80 20 60 . . . 20 20 160 60 . 20 . 16 20 120 20 . . 10 . . . . Purge Threat 288 | . . . . . 138 . . . . . . . . . 150 . . . . . . . . . . . . . . . Squads Dispatched 59 | . 3 . . . 3 . 3 . 9 . . . . 3 4 . . 2 4 . 3 . . . . 4 5 . 12 4 Investigation 8 | . 2 . . . . . . . 2 . . . . . . . . . 1 . . . . . . 3 . . . . Extermination 18 | . . . . . . . 1 . 4 . . . . 1 . . . 1 2 . 1 . . . . . 4 . 3 1 Reinforcement 21 | . 1 . . . 2 . . . 2 . . . . 2 3 . . 1 1 . 1 . . . . 1 1 . 4 2 Assault 6 | . . . . . . . . . 1 . . . . . 1 . . . . . 1 . . . . . . . 2 1 Garrison 6 | . . . . . 1 . 2 . . . . . . . . . . . . . . . . . . . . . 3 . Intercept . | . . . . . . . . . . . . . . . . . . . . . . . . . . . . . . . Searches Triggered . | . . . . . . . . . . . . . . . . . . . . . . . . . . . . . . . Data Miner Redirects 2 | . . . . . . . . . . . . . . . . . . . 1 . . . . . . . . . 1 . Construction Impeded 4 | . . . . . . . . . 1 . . . . 1 1 . . . . . 1 . . . . . . . . . Haulers Reinforced 1 | . . . . . . . . . . . . . . . . . . . . . . . . . . 1 . . . . Active Scanning Responses . | . . . . . . . . . . . . . . . . . . . . . . . . . . . . . . . Cargo Convoy Interrupts 1 | . . . . . . . . . 1 . . . . . . . . . . . . . . . . . . . . . Stealth | -11 -10 -10 -10 -8 -8 -8 -6 -6 -6 -6 -6 -6 -5 -5 -5 -5 -5 -5 -4 -4 -4 -4 -4 -4 -3 -3 -3 -2 -2 -2 --------- Run | Yrd Mat Min Sub Mat Sto Rec Fac Gar Fac Low Low Dat Pro Fac Ext Cet Arc Hub Fac Was Fac Upp Upp War Pro Res Tes Res Qua Frg Distress Signals 30 | . 1 . . 1 2 2 . . 1 . . . . . 2 2 . . 1 . . . . . . 5 1 8 2 2 Communications Jammed 57 | . . . . . . . . . . . . . 1 . . . . . . . . . . 15 . . 14 27 . . Distress Signals 56 | . . . . . . . . . . . . . . . . . . . . . . . . 15 . . 14 27 . . Times Spotted 547 | . 33 13 11 6 29 6 16 33 38 10 5 . 15 14 43 8 8 13 11 5 7 9 6 13 9 15 25 51 55 40 Peak Tracking Total 12 | . 4 3 2 4 5 2 4 6 7 4 3 . 5 4 7 5 2 3 6 3 4 4 4 7 4 8 5 10 12 10 Tactical Retreats 27 | . 3 1 . . 1 . . 1 2 . . . . . 2 . . 1 5 . . . . . 1 . 2 1 4 3 Traps | -11 -10 -10 -10 -8 -8 -8 -6 -6 -6 -6 -6 -6 -5 -5 -5 -5 -5 -5 -4 -4 -4 -4 -4 -4 -3 -3 -3 -2 -2 -2 ------- Run | Yrd Mat Min Sub Mat Sto Rec Fac Gar Fac Low Low Dat Pro Fac Ext Cet Arc Hub Fac Was Fac Upp Upp War Pro Res Tes Res Qua Frg Traps Triggered 17 | . . . . . . . 1 3 1 . . . . . 1 . . 1 2 . . . . . . . 3 . 3 2 Indirectly . | . . . . . . . . . . . . . . . . . . . . . . . . . . . . . . . Trap Hack Attempts . | . . . . . . . . . . . . . . . . . . . . . . . . . . . . . . . Triggered . | . . . . . . . . . . . . . . . . . . . . . . . . . . . . . . . Disarmed 6 | . 6 . . . . . . . . . . . . . . . . . . . . . . . . . . . . . Reprogrammed . | . . . . . . . . . . . . . . . . . . . . . . . . . . . . . . . Reused . | . . . . . . . . . . . . . . . . . . . . . . . . . . . . . . . Traps Extracted . | . . . . . . . . . . . . . . . . . . . . . . . . . . . . . . . Installed . | . . . . . . . . . . . . . . . . . . . . . . . . . . . . . . . Triggered . | . . . . . . . . . . . . . . . . . . . . . . . . . . . . . . . Machines | -11 -10 -10 -10 -8 -8 -8 -6 -6 -6 -6 -6 -6 -5 -5 -5 -5 -5 -5 -4 -4 -4 -4 -4 -4 -3 -3 -3 -2 -2 -2 ---------- Run | Yrd Mat Min Sub Mat Sto Rec Fac Gar Fac Low Low Dat Pro Fac Ext Cet Arc Hub Fac Was Fac Upp Upp War Pro Res Tes Res Qua Frg Machines Disabled 90 | . 2 1 . . 3 1 1 9 8 . . . 1 1 2 . . 16 . . 9 2 . . . 1 10 3 11 9 Max in Single Turn 11 | . 2 1 . . 1 1 1 2 2 . . . 1 1 1 . . 11 . . 9 . . . . 1 1 2 2 5 Garrison Access 5 | . . . . . 1 . . . . . . . . . . . . 1 . . . . . . . 1 . 2 . . Garrison Relay 3 | . . . . . . . . 3 . . . . . . . . . . . . . . . . . . . . . . Phase Generator 1 | . . . . . . . . 1 . . . . . . . . . . . . . . . . . . . . . . Network Hub 1 | . . . . . . . . . . . . . . . . . . 1 . . . . . . . . . . . . Energy Cycler 1 | . . . . . . . . . . . . . . . 1 . . . . . . . . . . . . . . . Machines Repaired . | . . . . . . . . . . . . . . . . . . . . . . . . . . . . . . . Machines Dismantled . | . . . . . . . . . . . . . . . . . . . . . . . . . . . . . . . Machines Sabotaged . | . . . . . . . . . . . . . . . . . . . . . . . . . . . . . . . Overloaded Fab Kills . | . . . . . . . . . . . . . . . . . . . . . . . . . . . . . . . Hacking | -11 -10 -10 -10 -8 -8 -8 -6 -6 -6 -6 -6 -6 -5 -5 -5 -5 -5 -5 -4 -4 -4 -4 -4 -4 -3 -3 -3 -2 -2 -2 --------- Run | Yrd Mat Min Sub Mat Sto Rec Fac Gar Fac Low Low Dat Pro Fac Ext Cet Arc Hub Fac Was Fac Upp Upp War Pro Res Tes Res Qua Frg Machines Accessed 102 | . 9 . . . 11 14 2 2 10 . 1 4 . 2 4 . . 6 4 . 6 . 2 2 . 4 11 1 5 2 Terminals 54 | . 7 . . . 7 6 . 2 7 . . . . . 4 . . 4 2 . 1 . . . . 2 7 . 3 2 Fabricators 7 | . . . . . . . . . . . . . . 1 . . . . 1 . 3 . . . . . 2 . . . Repair Stations 8 | . . . . . 2 . . . 1 . . . . 1 . . . . 1 . 1 . . . . 1 . . 1 . Recycling Units 12 | . 2 . . . 1 7 1 . 1 . . . . . . . . . . . . . . . . . . . . . Scanalyzers 4 | . . . . . . . . . 1 . . . . . . . . . . . 1 . . . . . 1 . 1 . Garrison Access 7 | . . . . . 1 . 1 . . . . . . . . . . 2 . . . . . . . 1 1 1 . . Total Hacks 306 | . 34 . . . 30 44 3 5 22 . 1 31 . 5 10 . . 17 17 . 20 . 8 2 . 14 25 1 10 7 Successful 166 | . 19 . . . 18 24 2 3 8 . 1 31 . 1 10 . . 5 7 . 10 . 8 2 . 4 6 1 4 2 Failed 140 | . 15 . . . 12 20 1 2 14 . . . . 4 . . . 12 10 . 10 . . . . 10 19 . 6 5 Catastrophic 36 | . 3 . . . 1 3 . 1 4 . . . . 1 . . . 2 3 . 1 . . . . 4 8 . 2 3 Database Lockouts . | . . . . . . . . . . . . . . . . . . . . . . . . . . . . . . . Manual 137 | . 26 . . . 15 29 . 2 16 . . . . . 6 . . 11 6 . 3 . . 1 . 2 9 . 4 7 Terminals 157 | . 28 . . . 19 20 . 5 17 . . . . . 10 . . 12 8 . 3 . . . . 5 17 . 6 7 Fabricators 20 | . . . . . . . . . . . . . . 2 . . . . 7 . 7 . . . . . 4 . . . Repair Stations 22 | . . . . . 7 . . . 2 . . . . 3 . . . . 2 . 2 . . . . 5 . . 1 . Recycling Units 33 | . 6 . . . 3 22 1 . 1 . . . . . . . . . . . . . . . . . . . . . Scanalyzers 15 | . . . . . . . . . 2 . . . . . . . . . . . 8 . . . . . 2 . 3 . Garrison Access 15 | . . . . . 1 . 2 . . . . . . . . . . 5 . . . . . . . 4 2 1 . . Terminal Hacks 79 | . 9 . . . 5 4 . 2 1 . 1 31 . . 7 . . 2 2 . . . 8 2 . . 3 . 1 1 Record 19 | . . . . . . . . . . . . 11 . . . . . . . . . . 7 . . . . . 1 . Part Schematic 13 | . 2 . . . . . . . . . . 11 . . . . . . . . . . . . . . . . . . Robot Schematic 7 | . 1 . . . . . . . . . . 6 . . . . . . . . . . . . . . . . . . Robot Analysis 5 | . 2 . . . . 1 . . . . . . . . 2 . . . . . . . . . . . . . . . Prototype ID Bank 5 | . 1 . . . . 1 . . . . . 3 . . . . . . . . . . . . . . . . . . Open Door 8 | . . . . . 2 . . 1 . . 1 . . . . . . . . . . . 1 2 . . 1 . . . Level Access Points 1 | . . . . . . . . . . . . . . . . . . . . . . . . . . . 1 . . . Emergency Access Points 1 | . . . . . . . . 1 . . . . . . . . . . . . . . . . . . . . . . Terminal Index 3 | . . . . . 1 . . . 1 . . . . . . . . . 1 . . . . . . . . . . . Fabricator Index 1 | . . . . . . . . . . . . . . . . . . . 1 . . . . . . . . . . . Unreport Threat 2 | . . . . . 1 . . . . . . . . . 1 . . . . . . . . . . . . . . . Locate Traps 4 | . 1 . . . 1 . . . . . . . . . 2 . . . . . . . . . . . . . . . Disarm Traps 1 | . 1 . . . . . . . . . . . . . . . . . . . . . . . . . . . . . Hauler Manifests 2 | . 1 . . . . . . . . . . . . . 1 . . . . . . . . . . . . . . . Zone Layout 4 | . . . . . . . . . . . . . . . 1 . . 2 . . . . . . . . . . . 1 Protovariant Controls 1 | . . . . . . . . . . . . . . . . . . . . . . . . . . . 1 . . . Release Object 2 | . . . . . . 2 . . . . . . . . . . . . . . . . . . . . . . . . Fabricator Hacks 6 | . . . . . . . . . . . . . . . . . . . 2 . 3 . . . . . 1 . . . Network Status 3 | . . . . . . . . . . . . . . . . . . . 1 . 1 . . . . . 1 . . . Load Schematic 1 | . . . . . . . . . . . . . . . . . . . 1 . . . . . . . . . . . Build 2 | . . . . . . . . . . . . . . . . . . . . . 2 . . . . . . . . . Repair Station Hacks 14 | . . . . . 6 . . . 1 . . . . 1 . . . . 1 . 2 . . . . 3 . . . . Scan Component 9 | . . . . . 3 . . . 1 . . . . 1 . . . . 1 . 1 . . . . 2 . . . . Repair 5 | . . . . . 3 . . . . . . . . . . . . . . . 1 . . . . 1 . . . . Recycling Unit Hacks 7 | . 1 . . . . 4 1 . 1 . . . . . . . . . . . . . . . . . . . . . Retrieve Components 7 | . 1 . . . . 4 1 . 1 . . . . . . . . . . . . . . . . . . . . . Scanalyzer 8 | . . . . . . . . . 2 . . . . . . . . . . . 4 . . . . . . . 2 . Insert Component 3 | . . . . . . . . . 1 . . . . . . . . . . . 1 . . . . . . . 1 . Analyze 5 | . . . . . . . . . 1 . . . . . . . . . . . 3 . . . . . . . 1 . Garrison Access Hacks 4 | . . . . . 1 . 1 . . . . . . . . . . 1 . . . . . . . . . 1 . . Unlock Access 1 | . . . . . . . 1 . . . . . . . . . . . . . . . . . . . . . . . Seal Access 3 | . . . . . 1 . . . . . . . . . . . . 1 . . . . . . . . . 1 . . Unauthorized Hacks 48 | . 9 . . . 6 16 . 1 3 . . . . . 3 . . 2 2 . 1 . . . . 1 2 . 1 1 Terminals 34 | . 7 . . . 6 7 . 1 2 . . . . . 3 . . 2 2 . 1 . . . . 1 1 . . 1 Track 2 | . . . . . . . . . . . . . . . 2 . . . . . . . . . . . . . . . Assimilate 1 | . . . . . . . . . . . . . . . . . . . . . . . . . . 1 . . . . Botnet 14 | . 1 . . . 1 1 . 1 2 . . . . . 1 . . 2 2 . 1 . . . . . 1 . . 1 Operators 2 | . 1 . . . 1 . . . . . . . . . . . . . . . . . . . . . . . . . Skim 15 | . 5 . . . 4 6 . . . . . . . . . . . . . . . . . . . . . . . . Fabricators . | . . . . . . . . . . . . . . . . . . . . . . . . . . . . . . . Repair Stations 1 | . . . . . . . . . 1 . . . . . . . . . . . . . . . . . . . . . Mechanics 1 | . . . . . . . . . 1 . . . . . . . . . . . . . . . . . . . . . Recycling Units 11 | . 2 . . . . 9 . . . . . . . . . . . . . . . . . . . . . . . . Reject 2 | . . . . . . 2 . . . . . . . . . . . . . . . . . . . . . . . . Mask 2 | . . . . . . 2 . . . . . . . . . . . . . . . . . . . . . . . . Tunnel 7 | . 2 . . . . 5 . . . . . . . . . . . . . . . . . . . . . . . . Scanalyzers 2 | . . . . . . . . . . . . . . . . . . . . . . . . . . . 1 . 1 . Researchers 2 | . . . . . . . . . . . . . . . . . . . . . . . . . . . 1 . 1 . Garrison Access . | . . . . . . . . . . . . . . . . . . . . . . . . . . . . . . . Data Cores Recovered 1 | . . . . . 1 . . . . . . . . . . . . . . . . . . . . . . . . . Used . | . . . . . . . . . . . . . . . . . . . . . . . . . . . . . . . Hacking Detections 79 | . 8 . . . 8 10 1 2 9 . . . . 2 4 . . 5 4 . 6 . . . . 4 11 . 3 2 Full Trace Events 4 | . . . . . . 2 . . . . . . . . . . . . 1 . . . . . . 1 . . . . Feedback Events . | . . . . . . . . . . . . . . . . . . . . . . . . . . . . . . . Feedback Blocked . | . . . . . . . . . . . . . . . . . . . . . . . . . . . . . . . Robot Schematics Acquired 10 | . 1 . . . . . . . . . . 6 . . . . . . . . . . . . . . 1 . 2 . Robots Built . | . . . . . . . . . . . . . . . . . . . . . . . . . . . . . . . Authchips . | . . . . . . . . . . . . . . . . . . . . . . . . . . . . . . . Time . | . . . . . . . . . . . . . . . . . . . . . . . . . . . . . . . Total Robot Build Rating . | . . . . . . . . . . . . . . . . . . . . . . . . . . . . . . . Part Schematics Acquired 21 | . 2 . . . . . . . 1 . . 11 . . . . . . . . 1 . . . . . 3 . 3 . Parts Built 4 | . . . . . . . . . . . . . . . . . . . . . 4 . . . . . . . . . Authchips . | . . . . . . . . . . . . . . . . . . . . . . . . . . . . . . . Time 197 | . . . . . . . . . . . . . . . . . . . . . 197 . . . . . . . . . Total Part Build Rating 32 | . . . . . . . . . . . . . . . . . . . . . 32 . . . . . . . . . Parts Repaired 5 | . . . . . 3 . . . . . . . . . . . . . . . 1 . . . . 1 . . . . Time 214 | . . . . . 102 . . . . . . . . . . . . . . . 26 . . . . 86 . . . . Parts Recycled . | . . . . . . . . . . . . . . . . . . . . . . . . . . . . . . . Recycled Matter . | . . . . . . . . . . . . . . . . . . . . . . . . . . . . . . . Retrieved Matter . | . . . . . . . . . . . . . . . . . . . . . . . . . . . . . . . Retrieved Components 14 | . 1 . . . . 10 2 . 1 . . . . . . . . . . . . . . . . . . . . . Parts Scanalyzed 3 | . . . . . . . . . 1 . . . . . . . . . . . 1 . . . . . . . 1 . Part Schematics Acquired 3 | . . . . . . . . . 1 . . . . . . . . . . . 1 . . . . . . . 1 . Parts Damaged 1 | . . . . . . . . . 1 . . . . . . . . . . . . . . . . . . . . . Bothacking | -11 -10 -10 -10 -8 -8 -8 -6 -6 -6 -6 -6 -6 -5 -5 -5 -5 -5 -5 -4 -4 -4 -4 -4 -4 -3 -3 -3 -2 -2 -2 ------------ Run | Yrd Mat Min Sub Mat Sto Rec Fac Gar Fac Low Low Dat Pro Fac Ext Cet Arc Hub Fac Was Fac Upp Upp War Pro Res Tes Res Qua Frg Used RIF Installer . | . . . . . . . . . . . . . . . . . . . . . . . . . . . . . . . Robots Hacked 15 | . . . . . . . . 1 . . . 1 1 2 . . . . . . . 1 . 4 . 1 . 3 1 . Non-combat 3 | . . . . . . . . . . . . . . 2 . . . . . . . . . . . . . 1 . . Combat 12 | . . . . . . . . 1 . . . 1 1 . . . . . . . . 1 . 4 . 1 . 2 1 . Robot Hacks Applied 15 | . . . . . . . . 1 . . . 1 1 2 . . . . . . . 1 . 4 . 1 . 3 1 . parse_system 13 | . . . . . . . . 1 . . . 1 1 . . . . . . . . 1 . 4 . 1 . 3 1 . no_distress 1 | . . . . . . . . . . . . . . 1 . . . . . . . . . . . . . . . . find_chute 1 | . . . . . . . . . . . . . . 1 . . . . . . . . . . . . . . . . Relay Couplers Released 21 | . . . . . . . . 11 . . . . . . . . . . . . . . . . . 3 . 3 4 . Machine Destruction 17 | . . . . . . . . 11 . . . . . . . . . . . . . . . . . 3 . 3 . . Programmers 4 | . . . . . . . . . . . . . . . . . . . . . . . . . . . . . 4 . Fabnet Peak Effective % . | . . . . . . . . . . . . . . . . . . . . . . . . . . . . . . . Robots Rewired 18 | . . . . . . 4 . 4 . . . . 1 . 7 . . . . . . . 2 . . . . . . . Allies Hacked 1 | . . . . . . . 1 . . . . . . . . . . . . . . . . . . . . . . . Hacks Repelled . | . . . . . . . . . . . . . . . . . . . . . . . . . . . . . . . Allies | -11 -10 -10 -10 -8 -8 -8 -6 -6 -6 -6 -6 -6 -5 -5 -5 -5 -5 -5 -4 -4 -4 -4 -4 -4 -3 -3 -3 -2 -2 -2 -------- Run | Yrd Mat Min Sub Mat Sto Rec Fac Gar Fac Low Low Dat Pro Fac Ext Cet Arc Hub Fac Was Fac Upp Upp War Pro Res Tes Res Qua Frg Total Allies 52 | . . 1 . . . 4 . 4 . . . . 2 . 19 . . . . 19 . . 2 . . 1 . . . . Largest Group 19 | . . 1 . . . 4 4 3 3 . . . 1 1 10 6 3 1 . 19 12 11 2 2 . 1 . . . . Highest-Rated Group 702 | . . 31 . . . 68 68 119 113 . . . 96 30 259 145 82 19 . 702 485 460 95 95 . 23 . . . . Highest-Rated Ally 119 | . . 31 . . . 21 21 119 46 . . . 96 30 39 34 34 19 . 50 50 50 48 48 . 23 . . . . Initial Warlord ECA Mod 71 | . . . . . . . . . 5 5 5 5 4 4 4 4 4 4 3 3 3 3 3 3 2 2 2 1 1 1 Total Orders 3 | . . . . . . 2 . . . . . . . . . . . 1 . . . . . . . . . . . . STAY 2 | . . . . . . 1 . . . . . . . . . . . 1 . . . . . . . . . . . . FOLLOW 1 | . . . . . . 1 . . . . . . . . . . . . . . . . . . . . . . . . Ally Attacks 416 | . . 10 . . . . 23 34 19 . . . 29 6 99 23 6 . . 62 23 67 7 8 . . . . . . Total Damage 13539 | . . 213 . . . . 356 1804 607 . . . 815 117 1905 474 97 . . 2932 766 2515 758 180 . . . . . . Kills 88 | . . 2 . . . . 3 6 8 . . . 5 . 24 4 2 . . 10 5 14 5 . . . . . . . Allies Corrupted . | . . . . . . . . . . . . . . . . . . . . . . . . . . . . . . . Allies Melted 1 | . . . . . . . . . . . . . . . . . . . . . . 1 . . . . . . . . Intel | -11 -10 -10 -10 -8 -8 -8 -6 -6 -6 -6 -6 -6 -5 -5 -5 -5 -5 -5 -4 -4 -4 -4 -4 -4 -3 -3 -3 -2 -2 -2 ------- Run | Yrd Mat Min Sub Mat Sto Rec Fac Gar Fac Low Low Dat Pro Fac Ext Cet Arc Hub Fac Was Fac Upp Upp War Pro Res Tes Res Qua Frg Active Infowar (turns) 26526 | 90 2239 1170 1195 321 1769 1622 524 1188 1634 1281 849 123 627 638 473 . 5 648 855 213 596 1355 699 1014 592 830 1303 1289 1103 281 Optics 3108 | . . . . . . . . . . . . . . . . . . . . . . . . . . 830 1303 975 . . Sensors 10808 | . . . . . . . . . . . . . . 624 301 . 5 607 815 213 596 1343 689 1014 388 713 1059 1225 1103 113 IFF 4213 | . . . . . . . . . 1473 1156 849 123 612 . . . . . . . . . . . . . . . . . Terrain 55 | . . . . . . . . . 55 . . . . . . . . . . . . . . . . . . . . . Structural 7793 | . . . . . . . . . . 105 . . . 430 305 . . 403 739 . 507 1354 678 805 565 830 904 . . 168 Seismic 8894 | 90 2239 1170 1195 321 1769 1622 488 . . . . . . . . . . . . . . . . . . . . . . . Machine Analysis 3197 | . . . . . . . 523 1188 1486 . . . . . . . . . . . . . . . . . . . . . Jamming 2693 | . . . . . . . . . 17 20 . . 15 . . . . . . . . . . 49 158 724 1180 514 16 . Robot Analysis Total 5 | . 2 . . . . 1 . . . . . . . . 2 . . . . . . . . . . . . . . . Derelict Logs Recovered 8 | . . . 1 . . . . . . 2 1 . 1 . . . . . . . . 1 2 . . . . . . . Drone Launches . | . . . . . . . . . . . . . . . . . . . . . . . . . . . . . . . Drone Recoveries . | . . . . . . . . . . . . . . . . . . . . . . . . . . . . . . . Exploration | -11 -10 -10 -10 -8 -8 -8 -6 -6 -6 -6 -6 -6 -5 -5 -5 -5 -5 -5 -4 -4 -4 -4 -4 -4 -3 -3 -3 -2 -2 -2 ------------- Run | Yrd Mat Min Sub Mat Sto Rec Fac Gar Fac Low Low Dat Pro Fac Ext Cet Arc Hub Fac Was Fac Upp Upp War Pro Res Tes Res Qua Frg Turns Passed 36457 | 345 2421 1216 1295 321 1801 6754 527 1188 1689 1302 998 123 886 713 1351 405 1257 680 870 213 596 1393 818 1014 592 830 1303 1578 1336 642 Spaces Moved 21081 | 162 886 645 704 69 850 2718 249 551 1076 892 573 91 529 452 1145 303 324 345 502 188 453 906 537 887 540 863 1176 1275 840 350 Core 49 | 6 . . 17 11 . . . . . . . . . . . . 12 . . . . . . . . . . . . 3 Treads 6665 | 156 886 479 55 38 850 1176 . 140 6 . . . 34 71 497 86 . . . . 85 906 387 . . . . 253 560 . Legs 6069 | . . . . . . . . 201 784 892 573 91 495 361 504 217 312 345 312 . 218 . . . . . 242 319 . 203 Wheels 2656 | . . 166 632 20 . 1542 236 . 60 . . . . . . . . . . . . . . . . . . . . . Hover 5614 | . . . . . . . 13 210 226 . . . . 20 144 . . . 190 188 150 . 150 887 540 863 934 703 280 116 Flight 28 | . . . . . . . . . . . . . . . . . . . . . . . . . . . . . . 28 Fastest Speed 13 | 50 160 105 105 115 150 111 178 108 99 94 125 133 131 68 50 88 88 152 86 86 86 116 97 97 97 61 61 52 79 13 Average Speed 125 | 155 160 146 130 204 160 170 181 148 129 131 135 133 137 113 72 88 145 152 127 86 92 145 138 97 97 71 64 100 108 120 Slowest Speed 1400 | 160 160 240 550 550 242 238 193 230 166 216 216 133 186 142 88 88 1400 152 171 86 194 154 154 97 97 97 76 207 207 196 Overloaded Moves . | . . . . . . . . . . . . . . . . . . . . . . . . . . . . . . . Propulsion Burnouts . | . . . . . . . . . . . . . . . . . . . . . . . . . . . . . . . Robots Hopped . | . . . . . . . . . . . . . . . . . . . . . . . . . . . . . . . Potential Cave-ins 7 | . . . . . . . . . 2 . . . . . . . . . . . . . . 5 . . . . . . Cave-ins Triggered . | . . . . . . . . . . . . . . . . . . . . . . . . . . . . . . . Teleports 3 | . . . . . . . . . . . . . . . . . . . . . . . . . . . . . 1 2 Exploration Rate (%) 58 | 10 99 76 30 8 96 99 7 56 34 91 65 75 70 14 95 56 81 34 10 90 12 95 69 93 75 25 96 46 81 23 Regions Visited 30 Branch Regions 19 Pre-discovered Areas 16 | . 3 1 1 . 1 8 . . . 1 . 1 . . . . . . . . . . . . . . . . . . Known Exits Taken 20 | . . . 1 1 1 . 1 . 1 . . . 1 1 1 1 1 1 . . 1 1 1 1 1 1 1 1 1 . Unknown Exits Taken 7 | 1 1 1 . . . 1 . . . 1 1 1 . . . . . . . . . . . . . . . . . . Scrap Searched 30 | . . 1 9 . . . . . . 6 3 . 2 . . . . . . . . 2 6 . 1 . . . . . Spaces Dug 404 | . . 29 . . 18 1 1 21 34 1 . . 21 7 1 . . 12 12 1 3 4 3 5 30 16 62 48 52 22 Terrain Destroyed 1264 | . 18 60 . . 35 3 5 113 109 20 27 . 29 11 19 4 11 200 15 8 37 9 11 32 63 25 125 100 115 60 Melee 78 | . . . . . . . . . 11 1 . . . 5 . . . . 6 1 2 . . . 4 5 18 5 11 9 Projectile 367 | . . . . . 2 3 5 1 60 12 6 . 8 6 19 4 11 39 9 7 8 9 11 6 7 20 52 31 18 13 AOE 819 | . 18 60 . . 33 . . 112 38 7 21 . 21 . . . . 161 . . 27 . . 26 52 . 55 64 86 38 Terrain Rammed . | . . . . . . . . . . . . . . . . . . . . . . . . . . . . . . . Walls Destroyed . | . . . . . . . . . . . . . . . . . . . . . . . . . . . . . . . Machines Disabled . | . . . . . . . . . . . . . . . . . . . . . . . . . . . . . . . Actions | -11 -10 -10 -10 -8 -8 -8 -6 -6 -6 -6 -6 -6 -5 -5 -5 -5 -5 -5 -4 -4 -4 -4 -4 -4 -3 -3 -3 -2 -2 -2 --------- Run | Yrd Mat Min Sub Mat Sto Rec Fac Gar Fac Low Low Dat Pro Fac Ext Cet Arc Hub Fac Was Fac Upp Upp War Pro Res Tes Res Qua Frg Total 29504 | 207 1755 872 1016 211 1172 4760 299 822 1296 990 776 92 662 622 1559 421 1086 460 685 230 619 958 598 1021 584 1034 1590 1485 1124 498 Wait 5693 | 10 774 184 247 112 153 1746 4 43 85 54 171 . 71 79 205 65 726 66 111 27 113 10 22 64 20 94 204 59 107 67 Move 21053 | 161 885 644 703 68 849 2717 249 550 1075 891 572 90 528 451 1144 302 323 344 502 187 452 905 536 886 539 862 1175 1274 839 350 Hop . | . . . . . . . . . . . . . . . . . . . . . . . . . . . . . . . Pick Up 326 | 4 10 4 10 2 31 54 6 35 15 4 2 . 3 16 14 8 . 2 10 5 9 5 1 9 1 15 18 15 15 3 Fast Attach 141 | 6 1 2 4 4 14 1 2 6 4 2 1 . 4 5 8 5 6 1 3 . 3 2 4 7 . 4 14 5 9 14 Attach 100 | 1 3 2 6 1 5 . 4 10 5 1 . . 3 3 2 1 1 1 4 . 2 2 . 4 1 4 12 7 11 4 Detach 76 | . 2 1 . . 1 8 . 6 8 . . . 1 1 2 2 2 . 4 . 3 . . 7 . 3 12 5 5 3 Swap 219 | . 10 12 5 3 23 4 1 4 8 12 7 1 10 16 17 2 . 8 8 . 6 4 8 3 5 2 16 14 7 3 Drop 373 | . 1 1 8 3 30 65 9 33 17 4 4 . 7 18 26 12 4 1 8 2 16 4 7 14 . 14 27 16 18 4 Fire 1144 | 25 66 21 33 18 65 90 23 97 64 20 19 . 24 23 107 24 24 37 8 8 12 22 12 25 14 22 57 81 76 27 Melee 216 | . . . . . . . 1 12 13 2 . 1 1 9 . . . . 27 1 3 3 . 2 4 14 55 9 37 22 Ram 1 | . . . . . . . . . . . . . . . . . . . . . . . . . . . . . . 1 Kick 1 | . . . . . . . . . 1 . . . . . . . . . . . . . . . . . . . . . Crush 7 | . 3 1 . . 1 1 . . . . . . . 1 . . . . . . . . . . . . . . . . Escape Stasis . | . . . . . . . . . . . . . . . . . . . . . . . . . . . . . . . Rewire 154 | . . . . . . 74 . 26 1 . . . 10 . 34 . . . . . . 1 8 . . . . . . . Trap . | . . . . . . . . . . . . . . . . . . . . . . . . . . . . . . . Miscellaneous . | . . . . . . . . . . . . . . . . . . . . . . . . . . . . . . . Route ------- -11/Scrapyard -10/Materials (discovered 6 exits: *Mat x3 / [*Min x2] / [*Sub]) -10/Mines (discovered 3 exits: *Mat x2 / [*Sub]) -10/Subcaves (discovered 2 exits: *Mat / Rec) -8/Materials (discovered 2 exits: Fac / *Sto) -8/Storage (discovered 2 exits: *Fac / *Rec) -8/Recycling -6/Factory (discovered 5 exits: Fac x2 / Low x2 / Gar) -6/Garrison -6/Factory -6/Lower Caves -6/Lower Caves -6/Data Miner -5/Proximity Caves -5/Factory (discovered 2 exits: Fac / *Ext) -5/Extension (discovered 3 exits: *Fac x2 / *Cet) -5/Cetus (discovered 2 exits: *Fac / *Arc) -5/Archives (discovered 3 exits: *Fac / *Hub x2) -5/Hub_04(d) -4/Factory -4/Waste -4/Factory -4/Upper Caves -4/Upper Caves (discovered 2 exits: *Res / *War) -4/Warlord -3/Proximity Caves -3/Research -3/Testing -2/Research (discovered 3 exits: *Acc / *Qua x2) -2/Quarantine (discovered 3 exits: *Acc / [*Sec] / *Frg) -2/Protoforge History --------- Turn | Location | Event 32 | -11/Scrapyard | Discovered new exit (range 16) 346 | -11/Scrapyard | Entered Materials 347 | -10/Materials | Build established: Mutant 528 | -10/Materials | Discovered new exit (range 7) 1245 | -10/Materials | Discovered new exit (range 5) 1629 | -10/Materials | Discovered new exit (range 9) 1803 | -10/Materials | Discovered new exit (range 16) 2002 | -10/Materials | Discovered new exit (range 9) 2242 | -10/Materials | Identified exit to Materials 2322 | -10/Materials | Loaded intel: 5 trap records 2545 | -10/Materials | Learned Storage interactive machine intel 2658 | -10/Materials | Learned Storage trap positions 2767 | -10/Materials | Entered Mines 2777 | -10/Mines | Escorted by a lone wolf Derelict 2797 | -10/Mines | Learned location of Storage (-8) 3048 | -10/Mines | Core integrity fell below 50% 3350 | -10/Mines | Assembled infested the area 3895 | -10/Mines | Discovered new exit (range 7) 3983 | -10/Mines | Entered Subcaves 3984 | -10/Subcaves | Identified exit to Materials 3984 | -10/Subcaves | Identified exit to Recycling 4038 | -10/Subcaves | Build established: Scavenger-Mutant 4531 | -10/Subcaves | Core integrity fell below 20% 4554 | -10/Subcaves | Lost 3 parts (2n1w) 4702 | -10/Subcaves | Build established: Mutant 4998 | -10/Subcaves | Learned location of 2 exits from Materials 5003 | -10/Subcaves | Learned location of Zion (-7) 5003 | -10/Subcaves | Met a Zionite searching for "candidates" 5125 | -10/Subcaves | Lost 3 parts (1n1u1w) 5278 | -10/Subcaves | Entered Materials 5278 | -8/Materials | Evolved 4 slots: Propulsion x3, Utility x1 5279 | -8/Materials | Identified exit to Storage 5279 | -8/Materials | Identified exit to Factory 5599 | -8/Materials | Entered Storage 5600 | -8/Storage | Loaded intel: 19 trap records 5601 | -8/Storage | Loaded intel: 18 interactive machine locations 5828 | -8/Storage | Build established: Scavenger-Mutant 6365 | -8/Storage | Discovered exit to Factory (range 9) 6646 | -8/Storage | Repaired Hvy. Armor Plating 6778 | -8/Storage | Learned location of Armory (-4) 6933 | -8/Storage | Garrison activated, responded to threat 7001 | -8/Storage | Build established: Mutant 7045 | -8/Storage | Repaired Lgt. Treads 7087 | -8/Storage | Repaired Adv. Treads 7396 | -8/Storage | Used back door to open Recycling access 7396 | -8/Storage | Discovered exit to Recycling (range 4) 7400 | -8/Storage | Entered Recycling 7530 | -8/Recycling | Build established: Scavenger-Mutant 8360 | -8/Recycling | Discovered new exit (range 12) 8428 | -8/Recycling | Learned Storage emergency access door positions 8494 | -8/Recycling | Learned Factory stockpile data 9018 | -8/Recycling | Entered Scraplab 9023 | -8/Recycling | Found Prototype Device 9023 | -8/Recycling | Identified Scrap Engine 9320 | -8/Recycling | Build established: Mutant 9682 | -8/Recycling | Build established: Construct 13134 | -8/Recycling | Build established: Commander-Construct 14154 | -8/Recycling | Entered Factory 14154 | -6/Factory | Accompanied by 4 allies 14154 | -6/Factory | Evolved 4 slots: Utility x2, Weapon x2 14155 | -6/Factory | Identified exit to Factory 14155 | -6/Factory | Identified exit to Lower Caves 14551 | -6/Factory | Garrison activated, responded to threat 14681 | -6/Factory | Identified exit to Garrison 14681 | -6/Factory | Entered Garrison 14721 | -6/Garrison | Triggered checkpoint 14792 | -6/Garrison | Triggered checkpoint 14866 | -6/Garrison | Build established: Construct 14882 | -6/Garrison | Lost 3 parts (1n1u1w) 14906 | -6/Garrison | Garrison Relay disabled 15076 | -6/Garrison | Garrison Relay disabled 15119 | -6/Garrison | Spotted Executioner 15119 | -6/Garrison | Spotted Executioner 15147 | -6/Garrison | Rewired Executioner 15161 | -6/Garrison | Allies destroyed Executioner 15167 | -6/Garrison | Allies destroyed Executioner 15190 | -6/Garrison | Found Exp. Core Analyzer 15191 | -6/Garrison | Lost 3 parts (1n1u1w) 15214 | -6/Garrison | Spotted B-75 Beast 15229 | -6/Garrison | Destroyed B-75 Beast 15303 | -6/Garrison | Found Exp. Targeting Computer 15336 | -6/Garrison | Spotted B-75 Beast 15350 | -6/Garrison | Destroyed B-75 Beast 15389 | -6/Garrison | Triggered checkpoint 15413 | -6/Garrison | Triggered checkpoint 15497 | -6/Garrison | Phase Generator disabled 15584 | -6/Garrison | Triggered checkpoint 15667 | -6/Garrison | Found Exp. Core Analyzer 15670 | -6/Garrison | Garrison Relay disabled 15759 | -6/Garrison | Discovered new exit (range 7) 15869 | -6/Garrison | Entered Factory 15869 | -6/Factory | Accompanied by 3 allies 15983 | -6/Factory | Allied Derelicts emerged from ambush trap array 16219 | -6/Factory | First assault squad dispatched 17254 | -6/Factory | Discovered exit to Lower Caves (range 15) 17298 | -6/Factory | Cargo convoy interrupted 17353 | -6/Factory | Core integrity fell below 50% 17380 | -6/Factory | Lost 9 allies 17423 | -6/Factory | Destroyed 7 combat bots 17558 | -6/Factory | Entered Lower Caves 17641 | -6/Lower Caves | Met a Warlord Commander 17642 | -6/Lower Caves | Learned location of Warlord (-4) 17643 | -6/Lower Caves | Warlord Commander delivered Encrypted Comm Array 17655 | -6/Lower Caves | Found Encrypted Comm Array 17948 | -6/Lower Caves | Learned location of 1 exit from Factory 18503 | -6/Lower Caves | Learned Factory terminal intel 18549 | -6/Lower Caves | Discovered new exit (range 12) 18860 | -6/Lower Caves | Entered another Lower Caves area 18904 | -6/Lower Caves | Spotted B-75 Beast 18919 | -6/Lower Caves | Destroyed B-75 Beast 19064 | -6/Lower Caves | Learned Factory terminal intel 19735 | -6/Lower Caves | Discovered new exit (range 5) 19858 | -6/Lower Caves | Entered Data Miner 19858 | -6/Data Miner | Discovered new exit (range 7) 19884 | -6/Data Miner | Met Data Miner 19931 | -6/Data Miner | Learned location of Section 7 (-2) 19931 | -6/Data Miner | Acquired the access code to Warlord's prototype stash 19949 | -6/Data Miner | Received God Mode back door access code from Data Miner 19981 | -6/Data Miner | Entered Proximity Caves 19985 | -5/Proximity Caves | Spotter reported a threat 19987 | -5/Proximity Caves | Spotter reported a threat 20051 | -5/Proximity Caves | Escorted by Enhanced Grunt 20180 | -5/Proximity Caves | Spotter reported a threat 20247 | -5/Proximity Caves | Spotted B-75 Beast 20271 | -5/Proximity Caves | Destroyed B-75 Beast 20641 | -5/Proximity Caves | Attracted the attention of an 0b10 outpost 20673 | -5/Proximity Caves | Discovered exit to Factory (range 12) 20714 | -5/Proximity Caves | Found Exp. Thermal Shield 20867 | -5/Proximity Caves | Entered Factory 20867 | -5/Factory | Accompanied by 1 ally 20867 | -5/Factory | Evolved 2 slots: Power x1, Utility x1 20868 | -5/Factory | Identified exit to Factory 20869 | -5/Factory | Loaded intel: 28 terminal locations 21369 | -5/Factory | Discovered new exit (range 15) 21579 | -5/Factory | Identified exit to Extension 21580 | -5/Factory | Entered Extension 21665 | -5/Extension | Rescued a captive Derelict 21745 | -5/Extension | Rescued a captive Derelict 21746 | -5/Extension | Rescued a captive Derelict 21753 | -5/Extension | Rescued a captive Derelict 21772 | -5/Extension | Rescued a captive Derelict 21903 | -5/Extension | Rescued a captive Derelict 21904 | -5/Extension | Rescued a captive Derelict 21940 | -5/Extension | Rescued a captive Derelict 21942 | -5/Extension | Rescued a captive Derelict 22143 | -5/Extension | Spotted B-75 Beast 22158 | -5/Extension | Destroyed B-75 Beast 22165 | -5/Extension | Spotted B-75 Beast 22189 | -5/Extension | Allies destroyed B-75 Beast 22305 | -5/Extension | Lost 3 allies 22333 | -5/Extension | Rescued a captive Derelict 22334 | -5/Extension | Rescued a captive Derelict 22362 | -5/Extension | Energy Cycler disabled 22362 | -5/Extension | Rescued a captive Derelict 22362 | -5/Extension | Rescued a captive Derelict 22362 | -5/Extension | Rescued a captive Derelict 22363 | -5/Extension | Rescued a captive Derelict 22363 | -5/Extension | Rescued a captive Derelict 22364 | -5/Extension | Rescued a captive Derelict 22365 | -5/Extension | Rescued a captive Derelict 22366 | -5/Extension | Rescued a captive Derelict 22377 | -5/Extension | Rescued a captive Derelict 22426 | -5/Extension | Lost 4 allies 22708 | -5/Extension | Discovered exit to Factory (range 15) 22741 | -5/Extension | Extracted ID and sensor layout for unrecognized location from A7's data core 22748 | -5/Extension | System corruption reached 10% 22750 | -5/Extension | Found Corrupted Prototype Protection 22750 | -5/Extension | Identified Med. Regenerative Plating 22780 | -5/Extension | First assault squad dispatched 22838 | -5/Extension | Discovered new exit (range 15) 22839 | -5/Extension | Discovered exit to Factory (range 15) 22843 | -5/Extension | Lost 3 allies 22853 | -5/Extension | Identified exit to Cetus 22931 | -5/Extension | Entered Cetus 22931 | -5/Cetus | Accompanied by 6 allies 22942 | -5/Cetus | Spotted Cetus Guard 22943 | -5/Cetus | Spotted Cetus Guard 22949 | -5/Cetus | Spotted Cetus Guard 22951 | -5/Cetus | Destroyed Cetus Guard 22953 | -5/Cetus | Allies destroyed Cetus Guard 22956 | -5/Cetus | Spotted Cetus Guard 22968 | -5/Cetus | Destroyed Cetus Guard 22975 | -5/Cetus | Destroyed Cetus Guard 23052 | -5/Cetus | Discovered new exit (range 15) 23101 | -5/Cetus | Spotted Cetus Guard 23101 | -5/Cetus | Spotted Cetus Guard 23120 | -5/Cetus | Allies destroyed Cetus Guard 23120 | -5/Cetus | Spotted Cetus Guard 23131 | -5/Cetus | Spotted Cetus Guard 23134 | -5/Cetus | Destroyed Cetus Guard 23138 | -5/Cetus | Allies destroyed Cetus Guard 23142 | -5/Cetus | Discovered exit to Factory (range 15) 23147 | -5/Cetus | Met Revision 17 23320 | -5/Cetus | Identified exit to Archives 23336 | -5/Cetus | Entered Archives 23336 | -5/Archives | Accompanied by 3 allies 23411 | -5/Archives | Discovered exit to Factory (range 15) 23557 | -5/Archives | Discovered new exit (range 14) 23575 | -5/Archives | Discovered new exit (range 15) 24586 | -5/Archives | Identified exit to Hub_04(d) 24593 | -5/Archives | Entered Hub_04(d) 24593 | -5/Hub_04(d) | Accompanied by 1 ally 24944 | -5/Hub_04(d) | Spotted B-75 Beast 24984 | -5/Hub_04(d) | Discovered exit to Factory (range 4) 25231 | -5/Hub_04(d) | Network Hub disabled 25243 | -5/Hub_04(d) | Spotted Lightning 25243 | -5/Hub_04(d) | Spotted Lightning 25243 | -5/Hub_04(d) | Spotted Lightning 25272 | -5/Hub_04(d) | Spotted Lightning 25273 | -5/Hub_04(d) | Entered Factory 25273 | -4/Factory | Evolved 2 slots: Utility x1, Weapon x1 25274 | -4/Factory | Identified exit to Armory 25275 | -4/Factory | Loaded intel: 25 terminal locations 25628 | -4/Factory | Incoming investigation squad redirected 26143 | -4/Factory | Manually triggered Chute Trap 26143 | -4/Factory | Sucked down chute 26143 | -4/Factory | Entered Waste 26158 | -4/Waste | EMP discharged 26158 | -4/Waste | System corruption reached 10% 26170 | -4/Waste | Spotted C-40 Crusher 26190 | -4/Waste | Spotted C-40 Crusher 26197 | -4/Waste | Spotted C-40 Crusher 26230 | -4/Waste | Met Warlord forces unprepared to attack 26236 | -4/Waste | Allies destroyed C-40 Crusher 26242 | -4/Waste | Allies destroyed C-40 Crusher 26248 | -4/Waste | Allies destroyed C-40 Crusher 26255 | -4/Waste | Spotted C-40 Crusher 26257 | -4/Waste | Allies destroyed C-40 Crusher 26258 | -4/Waste | EMP discharged 26265 | -4/Waste | Spotted C-40 Crusher 26266 | -4/Waste | Spotted C-40 Crusher 26271 | -4/Waste | Lost 4 allies 26276 | -4/Waste | Allies destroyed C-40 Crusher 26278 | -4/Waste | Allies destroyed C-40 Crusher 26302 | -4/Waste | Discovered new exit (range 13) 26336 | -4/Waste | Identified exit to Factory 26356 | -4/Waste | Entered Factory 26356 | -4/Factory | Accompanied by 12 allies 26557 | -4/Factory | Repaired Hcp. Storage Unit 26630 | -4/Factory | Found Quantum Capacitor 26645 | -4/Factory | Fabricated HERF Cannon? 26795 | -4/Factory | Discovered new exit (range 5) 26797 | -4/Factory | Identified exit to Upper Caves 26856 | -4/Factory | First assault squad dispatched 26929 | -4/Factory | Fabricated Enh. Nova Cannon (x2) 26952 | -4/Factory | Entered Upper Caves 26952 | -4/Upper Caves | Accompanied by 11 allies 27490 | -4/Upper Caves | Learned Research garrison access intel 27502 | -4/Upper Caves | Attracted the attention of an 0b10 base 27535 | -4/Upper Caves | Lost 3 allies 27673 | -4/Upper Caves | Found Botcube 27888 | -4/Upper Caves | Spotted B-86 Titan 27915 | -4/Upper Caves | Allies destroyed B-86 Titan 27936 | -4/Upper Caves | Lost 4 allies 28341 | -4/Upper Caves | Discovered new exit (range 2) 28343 | -4/Upper Caves | Identified exit to Upper Caves 28345 | -4/Upper Caves | Entered another Upper Caves area 28345 | -4/Upper Caves | Accompanied by 1 ally 28368 | -4/Upper Caves | Discovered new exit (range 12) 28470 | -4/Upper Caves | Entered an active Warlord outpost 28481 | -4/Upper Caves | Learned Factory trap positions 28481 | -4/Upper Caves | Learned Research trap positions 28481 | -4/Upper Caves | Learned Extension stockpile data 28481 | -4/Upper Caves | Learned Factory terminal intel 28481 | -4/Upper Caves | Learned Research garrison access intel 28847 | -4/Upper Caves | Attracted the attention of an 0b10 outpost 28925 | -4/Upper Caves | Found DCF Scrap (15 items) 28985 | -4/Upper Caves | Discovered new exit (range 9) 29058 | -4/Upper Caves | Learned Research emergency access door positions 29058 | -4/Upper Caves | Learned location of 1 exit from Proximity Caves 29154 | -4/Upper Caves | Identified exit to Warlord 29163 | -4/Upper Caves | Entered Warlord 29163 | -4/Warlord | Accompanied by 2 allies 29196 | -4/Warlord | System corruption cleaned by Quarantine Array 29515 | -4/Warlord | Opened Warlord's prototype stash 29527 | -4/Warlord | Found Prototype Processor 29527 | -4/Warlord | Identified Exp. Target Analyzer 29535 | -4/Warlord | Found Prototype Device 29535 | -4/Warlord | Identified Exp. Phase Shifter 29571 | -4/Warlord | Met Warlord 29596 | -4/Warlord | Warlord's base attacked by MAIN.C 29627 | -4/Warlord | Found Prototype Energy Gun 29627 | -4/Warlord | Identified Vortex Rifle 29632 | -4/Warlord | Found Prototype Energy Gun 29632 | -4/Warlord | Identified Vortex Rail 29635 | -4/Warlord | Found Vortex Rail 29640 | -4/Warlord | Found Vortex Rifle 29695 | -4/Warlord | Found Prototype Special Weapon 29946 | -4/Warlord | Warlord forces counterattacked 30001 | -4/Warlord | Opened side exit 30056 | -4/Warlord | Spotted Executioner 30089 | -4/Warlord | Destroyed Executioner 30171 | -4/Warlord | Discovered new exit (range 7) 30173 | -4/Warlord | Spotted Striker 30176 | -4/Warlord | Identified exit to Proximity Caves 30177 | -4/Warlord | Entered Proximity Caves 30178 | -3/Proximity Caves | Identified exit to Research 30179 | -3/Proximity Caves | Attracted the attention of an 0b10 checkpoint 30375 | -3/Proximity Caves | Spotted B-86 Titan 30769 | -3/Proximity Caves | Entered Research 30769 | -3/Research | Evolved 2 slots: Utility x2 30770 | -3/Research | Loaded intel: 83 trap records 30772 | -3/Research | Loaded intel: 4 garrison access locations 30810 | -3/Research | Discovered new exit (range 13) 30918 | -3/Research | Identified exit to Testing 30969 | -3/Research | Revision forces began assault on 0b10 30981 | -3/Research | Met up with Revision 17++ 31080 | -3/Research | Build established: Scavenger-Construct 31177 | -3/Research | Found Fusion Bomb Launcher 31227 | -3/Research | Repaired Broken Adv. Transmission Jammer? 31469 | -3/Research | Research terminal network offline 31529 | -3/Research | Build established: Infiltrator-Construct 31589 | -3/Research | Spotted Striker 31589 | -3/Research | Spotted Executioner 31593 | -3/Research | Found Exp. Core Analyzer 31599 | -3/Research | Entered Testing 31614 | -3/Testing | Lost 5 allies 31739 | -3/Testing | Spotted Striker 31741 | -3/Testing | Spotted Striker 31827 | -3/Testing | Found Prototype Protection 31834 | -3/Testing | Found Prototype Protection 31840 | -3/Testing | Found Prototype Protection 31916 | -3/Testing | Found Spectral Analyzer 32021 | -3/Testing | Identified exit to Research 32190 | -3/Testing | Found Prototype Energy Gun 32190 | -3/Testing | Identified Warp Gun 32216 | -3/Testing | Found Prototype Device 32216 | -3/Testing | Identified Exp. Hardlight Generator 32440 | -3/Testing | Found Prototype Energy Cannon 32656 | -3/Testing | Identified Hvy. Regenerative Plating (x2) 32657 | -3/Testing | Identified SHELL Armor 32779 | -3/Testing | Build established: Construct 32819 | -3/Testing | Found Prototype Processor 32819 | -3/Testing | Identified Exp. Melee Analysis Suite 32837 | -3/Testing | Found Prototype Launcher 32837 | -3/Testing | Identified Adv. Micro-nuke Launcher 32843 | -3/Testing | Identified Disintegrator 32902 | -3/Testing | Entered Research 32902 | -2/Research | Warlord forces began assault on 0b10 32902 | -2/Research | Evolved 2 slots: Utility x2 32903 | -2/Research | Loaded intel: 2 garrison access locations 32927 | -2/Research | Distinguished unit "Offensive Angels" dispatched to help 33012 | -2/Research | Research machine network offline 33148 | -2/Research | Discovered new exit (range 7) 33153 | -2/Research | Identified exit to Access 33224 | -2/Research | Build established: Scavenger-Construct 33256 | -2/Research | Spotted B-90 Cyclops 33273 | -2/Research | Found Prototype Launcher 33273 | -2/Research | Identified Ragnarok Missile Launcher 33283 | -2/Research | Discovered new exit (range 4) 33284 | -2/Research | Identified exit to Quarantine 33319 | -2/Research | Spotted SY-OCP(L) 33324 | -2/Research | Spotted Striker 33324 | -2/Research | Spotted Striker 33325 | -2/Research | P-80 Master assimilated allied 4O-ENG(B) 33327 | -2/Research | Spotted 4O-ENG(B) 33330 | -2/Research | Destroyed SY-OCP(L) 33335 | -2/Research | Borebot progress halted 33342 | -2/Research | Spotted Striker 33344 | -2/Research | Destroyed Striker 33346 | -2/Research | Discovered exit to Quarantine (range 23) 33347 | -2/Research | Spotted Striker 33391 | -2/Research | Lost 10 allies 33487 | -2/Research | Borebot progress halted 33521 | -2/Research | Destroyed TK-SR5(L) 33663 | -2/Research | Spotted Striker 33665 | -2/Research | Borebot progress halted 33735 | -2/Research | Lost 6 allies 33856 | -2/Research | Spotted Striker 33933 | -2/Research | Lost 4 allies 33961 | -2/Research | Spotted Executioner 33965 | -2/Research | Destroyed Executioner 33967 | -2/Research | Destroyed Executioner 33967 | -2/Research | Destroyed Executioner 33978 | -2/Research | Destroyed Striker 33979 | -2/Research | Spotted Executioner 33984 | -2/Research | Destroyed Executioner 34014 | -2/Research | Destroyed 10 combat bots 34016 | -2/Research | Found Prototype Device 34016 | -2/Research | Identified Adv. Kinecellerator 34067 | -2/Research | Spotted Striker 34071 | -2/Research | Destroyed Striker 34074 | -2/Research | Spotted Striker 34078 | -2/Research | Destroyed Striker 34092 | -2/Research | Spotted Executioner 34095 | -2/Research | Destroyed Executioner 34096 | -2/Research | Spotted Executioner 34097 | -2/Research | Spotted Executioner 34097 | -2/Research | Destroyed Executioner 34101 | -2/Research | Spotted Executioner 34129 | -2/Research | Destroyed 12 combat bots 34142 | -2/Research | Destroyed Executioner 34234 | -2/Research | Spotted Striker 34260 | -2/Research | Destroyed Striker 34278 | -2/Research | Spotted Striker 34278 | -2/Research | Destroyed Striker 34289 | -2/Research | Lost 5 allies 34299 | -2/Research | Destroyed 7 combat bots 34411 | -2/Research | Given Cave Seal Controls access code 34480 | -2/Research | Entered Quarantine 34539 | -2/Quarantine | Spotted Alpha 7 34544 | -2/Quarantine | Destroyed Alpha 7 34568 | -2/Quarantine | Garrison activated, responded to threat 34614 | -2/Quarantine | Lost 10 allies 34639 | -2/Quarantine | Destroyed 9 combat bots 34641 | -2/Quarantine | Found Alien Artifact 34643 | -2/Quarantine | Found Alien Artifact 34650 | -2/Quarantine | Found Alien Artifact 34650 | -2/Quarantine | Identified Transdimensional Reconstructor 34650 | -2/Quarantine | Warped through subspace 34654 | -2/Quarantine | Scanned by Researcher 34672 | -2/Quarantine | Identified Dimensional Node Initializer (x2) 34672 | -2/Quarantine | Initialized slip node 34727 | -2/Quarantine | Found Dimensional Node Initializer 34730 | -2/Quarantine | First assault squad dispatched 34740 | -2/Quarantine | Found Alien Artifact 34743 | -2/Quarantine | Found Alien Artifact 34760 | -2/Quarantine | Incoming assault squad redirected 34905 | -2/Quarantine | Build established: Construct 34942 | -2/Quarantine | Cryocooling Duct disabled 34956 | -2/Quarantine | Discovered exit to Access (range 5) 34957 | -2/Quarantine | Ambient heat levels rising (+20) 34957 | -2/Quarantine | Non-combat units ordered to evacuate 34972 | -2/Quarantine | Found Alien Slashing Weapon 34972 | -2/Quarantine | Identified Sigix Broadsword 35135 | -2/Quarantine | Found Alien Artifact 35653 | -2/Quarantine | Spotted Fortress 35703 | -2/Quarantine | Core integrity fell below 50% 35733 | -2/Quarantine | Build established: Scavenger-Construct 35737 | -2/Quarantine | System corruption reached 10% 35813 | -2/Quarantine | Discovered new exit (range 6) 35813 | -2/Quarantine | Discovered new exit (range 5) 35815 | -2/Quarantine | Identified exit to Protoforge 35816 | -2/Quarantine | Entered Protoforge 35819 | -2/Protoforge | Spotted B-90 Cyclops 35840 | -2/Protoforge | Spotted Hotshot 35840 | -2/Protoforge | Spotted Hotshot 35840 | -2/Protoforge | Spotted Hotshot 35841 | -2/Protoforge | Spotted Hotshot 35841 | -2/Protoforge | Superfortress began startup sequence 35841 | -2/Protoforge | Spotted Hotshot 35896 | -2/Protoforge | Spotted Hotshot 35896 | -2/Protoforge | Spotted Hotshot 35897 | -2/Protoforge | Spotted Hotshot 35929 | -2/Protoforge | Lost 3 parts (3u) 35948 | -2/Protoforge | Spotted Hotshot 35952 | -2/Protoforge | Destroyed Hotshot 35952 | -2/Protoforge | Destroyed Hotshot 35954 | -2/Protoforge | Destroyed Hotshot 35958 | -2/Protoforge | Spotted Hotshot 35967 | -2/Protoforge | Destroyed Hotshot 35969 | -2/Protoforge | Destroyed Hotshot 35976 | -2/Protoforge | Destroyed Hotshot 35982 | -2/Protoforge | Destroyed Hotshot 36023 | -2/Protoforge | Destroyed 8 combat bots 36042 | -2/Protoforge | Lost 3 parts (2u1w) 36048 | -2/Protoforge | Destroyed Hotshot 36102 | -2/Protoforge | Destroyed Hotshot 36167 | -2/Protoforge | Spotted Hotshot 36167 | -2/Protoforge | Spotted Hotshot 36168 | -2/Protoforge | Spotted Hotshot 36170 | -2/Protoforge | Spotted Hotshot 36174 | -2/Protoforge | Spotted Hotshot 36177 | -2/Protoforge | Destroyed Hotshot 36179 | -2/Protoforge | Destroyed Hotshot 36179 | -2/Protoforge | Destroyed Hotshot 36181 | -2/Protoforge | Destroyed Hotshot 36191 | -2/Protoforge | Identified Hpw. Transdimensional Reconstructor (x2) 36191 | -2/Protoforge | Warped through subspace 36316 | -2/Protoforge | First assault squad dispatched 36350 | -2/Protoforge | Build established: Scavenger-Gunner 36386 | -2/Protoforge | Core integrity fell below 20% 36395 | -2/Protoforge | Warped through subspace 36453 | -2/Protoforge | Lost 7 parts (1p3n2u1w) 36458 | -2/Protoforge | Self-destructed Last Messages --------------- 36422_ Railslug penetrates Earth. 36422_ HV Slug penetrates Wall. 36422_ Penetrated by HV Slug. 36422_ HV Slug penetrates Earth. 36422_ Penetrated by HV Slug. 36423_ 4AT %RFFJOHU 1IJ4EG/NCYNAPV5ONVNQF7#F&QU 36428_ Acquired Exp. Surge Thruster. 36438_ System corrupted: Matter fused (-9). 36439_ Acquired Exp. Surge Thruster. 36441_ Railslug penetrates Wall. 36444_ Scrap Engine consumes Prototype Protection. 36453_ C-30 ARC bursts open, deploying its payload. 36453_ G-73 Enforcer unfolds itself. 36453_ B-74 Champion unfolds itself. 36453_ L-61 Swordsman unfolds itself. 36453_ G-73 Enforcer unfolds itself. 36453_ M-36 Artificer unfolds itself. 36455_ K6OP#QUTEA% LOYLPSDOS4MP4Y#URN Map ----- +----------------------------------------------------+ | ?????????????????????????????????????????????????? | | ?????????????????????????????????????????????????? | | ?????????????????????????????????????????????????? | | ?????????????????????????????????????????????????? | | ?????????????????????????????????????????????????? | | ?????????????????????????????????????????????????? | | ?????????????????????????????????????????????????? | | ?????????????????????????????????????????????????? | | ?????????????????????????????????????????????????? | | ?????????????????????????????????????????????????? | | ?????????????????????????????????????????????????? | | ?????????????????????????????????????????????????? | | ?????????????????????????????????????????????????? | | ?????????????????????????????????????????????????? | | ?????????????????????????????????????????????????? | | ?????????????????????????????????????????????????? | | ??????????????????????????????######???######???## | | ??????????????????????????????#""""#???#""""####"" | | ??????????????????????######### ]##### = """"" | | ??????????????????????# | | ??????????????????????# | | ??????????????????????# | | ??????????????????????# | | ??????????????????????# | | ??????????????????????# | | ??????????????????????# @##### #####====###"" | | ??????????????????????# #???#""""#???#""""# " | | ??????????????????????# l #???######???########### | | ??????????????????????# #??????????????????????? | | ??????????????????????# m#??????????????????????? | | ??????????????????????# b ##?????????????????????? | | ??????????????????????# gg##?????????????????????? | | ?????????????????????##% ##?????????????????????? | | ?????????????????????## ##?????????????????????? | | ?????????############## # ?????????????????????? | | ?????????############## # ?????????????????????? | | ?????????## # ?????????????????????? | | ?????????## # ?????????????????????? | | ?????????## """" """" + ?????????????????????? | | ?????????## """" """" # ?????????????????????? | | ########### """" """" # ?????????????????????? | | ############ " "" """" # ?????????????????????? | | ## # % ##?????????????????????? | | ## # " " """" ##?????????????????????? | | ## " """ """" ##?????????????????????? | | ## # """" """" ##?????????????????????? | | ## # """" """" ##?????????????????????? | | ## # ##?????????????????????? | | ## # ##?????????????????????? | | ## # ##?????????????????????? | +----------------------------------------------------+ Best States ------------- Heat Dissipation 127 Energy Generation 60 Energy Capacity 1163 Matter Stores 300 Matter Capacity 300 Sight Range 24 Robot Scan Range 16 Terrain Scan Range 16 Terrain Scan Density 10 Jamming Range 16 Armor Coverage 1125 Resistance: KI 20 Resistance: TH 30 Propulsion Shielding 90 Weapon Shielding 90 Phase Shifting 20 Evasion (%) 71 Targeting Accuracy 12 Core Analysis 8 Recoil Reduction 5 Kinecelleration 50 Offensive Hacking 12 Item Schematics ----------------- Huge Storage Unit | -10/Materials | Hacked Hcp. Storage Unit | -10/Materials | Hacked Sub. Shrapnel Launcher | -6/Factory | Scanalyzed Combat Drone Bay | -6/Data Miner | Free Lgt. Regenerative Plating | -6/Data Miner | Free Enh. Flexi-carbon Leg | -6/Data Miner | Free Prc. Matter Filter | -6/Data Miner | Free Hvy. Proton Cannon | -6/Data Miner | Free Adv. VSS Leg | -6/Data Miner | Free Adv. Coolant Injector | -6/Data Miner | Free Railgun | -6/Data Miner | Free Imp. Kinecellerator | -6/Data Miner | Free Myomer Leg | -6/Data Miner | Free Gamma Bomb Array | -6/Data Miner | Free Imp. Heavy Treads | -4/Factory | Scanalyzed Cld. Antigrav System | -3/Testing | Archive Exp. Coolant Injector | -3/Testing | Archive Neutron Missile Launcher | -3/Testing | Archive Hds. Centrium Heavy Treads | -2/Quarantine | Archive Imp. Diametric Drive | -2/Quarantine | Archive Adv. Cooling System | -2/Quarantine | Scanalyzed Robot Schematics ------------------ M-13 Machinist | -10/Materials | Hacked S-27 Virus | -6/Data Miner | Free H-66 Slayer | -6/Data Miner | Free P-60 Hacker | -6/Data Miner | Free C-35 Carver | -6/Data Miner | Free G-67 Veteran | -6/Data Miner | Free L-61 Swordsman | -6/Data Miner | Free R-06 Scavenger | -3/Testing | Archive A-27 Freighter | -2/Quarantine | Archive Y-72 Warden | -2/Quarantine | Archive Fabricated ------------ HERF Cannon | x2 | -4/Factory | Preloaded Enh. Nova Cannon | x2 | -4/Factory | Preloaded Repaired ---------- Hvy. Armor Plating | 59% | -8/Storage Lgt. Treads | 30% | -8/Storage Adv. Treads | 45% | -8/Storage Hcp. Storage Unit | 50% | -4/Factory Adv. Transmission Jammer | 53% | -3/Research | Broken Alien Tech Used ----------------- Transdimensional Reconstructor Dimensional Node Initializer Sigix Broadsword High-powered Transdimensional Reconstructor Achievements -------------- None Challenges ------------ None Game ------ Seed WeightSpreadRedistributor Manual? 0 Play Time 06:55:58 Cumulative 522.5 hours Start 2025.07.05 @ 14:53:18 End 2025.07.08 @ 01:04:23 Sessions 15 Manual Loads 0 Difficulty Rogue Special Mode None Game No. 274 Rogue 211 Adventurer 63 Explorer 0 Win Type - Total 9 Types 8/0/0/1/0/0/0/0/0/0 Lore% 90 Gallery% 82 Achievement% 67 Wizard Run 0 Options --------- Layout 2 ASCII 0 Keyboard 1 Movement Numpad Keybinds 0 Fullscreen 2 Font 24/Terminus Map View 50x44 Zoom Use 0% Tactical HUD 1 Map Filters NONE Filters NONE Steam 1 RUN: 7b05e321-1653-4cfa-8f89-fd509ed6e121